Workbook

Sheet Notes

Sheet Click here for your run details
A1: 2016 Townsville Road Runners Long Course Only Summary
A2: For any queries, please see Michael Fitzsimmons or send an email to results@townvilleroadrunners.com.au Subject = "Results Query". ~ Any runs completed by a member in the 1 month prior to their membership being received will also be counted towards club points. Runs prior to this are ineligible for club points. Only your best 15 point scoring runs are used for club points.
A3: Click on any number shaded yellow below adjacent to your name and a new sheet will appear to show the details for the underlying runs.
A4: Run | B4: (All)
B5: Number of Runs By Membership Status
A6: _ | B6: No. of Runs Based on Membership Status
A7: Surname / First Name | B7: # of Member Runs Eligible for Club Points | C7: # of Member Runs Ineligible for Club Points ~ | D7: # of Non-Member Runs (Ineligible for Club Points) | E7: All Runs | F7: Member/Non-Member | G7: Average Place -All Runs | H7: Club Championship Points (Best 15) | I7: No. of Runs Counted for points (Best 15) | J7: Average Club Points per Run (Best 15)
A8: No Name Recorded | D8: 5 | E8: 5 | F8: =IF(AND(SUM(B8:C8)>0,SUM(B8:C8)<99),"Member","Non-Member") -> Non-Member | G8: =SUMIFS(Table2[[#All],[Overall Place]],Table2[[#All],[Surname / First Name]],$A8)/E8 -> 52.8 | H8: =SUMIFS(Table2[[#All],[Club Points]],Table2[[#All],[Surname / First Name]],'Click here for your run details'!A8,Table2[[#All],[Excluded from Top 15 Run (Y/N)]],"N") -> 0 | I8: =COUNTIFS(Table2[[#All],[Surname / First Name]],'Click here for your run details'!A8,Table2[[#All],[Excluded from Top 15 Run (Y/N)]],"N") -> 0 | J8: =IFERROR(H8/I8,0) -> 0
A9: Abdullan Aden | D9: 1 | E9: 1 | F9: =IF(AND(SUM(B9:C9)>0,SUM(B9:C9)<99),"Member","Non-Member") -> Non-Member | G9: =SUMIFS(Table2[[#All],[Overall Place]],Table2[[#All],[Surname / First Name]],$A9)/E9 -> 23 | H9: =SUMIFS(Table2[[#All],[Club Points]],Table2[[#All],[Surname / First Name]],'Click here for your run details'!A9,Table2[[#All],[Excluded from Top 15 Run (Y/N)]],"N") -> 0 | I9: =COUNTIFS(Table2[[#All],[Surname / First Name]],'Click here for your run details'!A9,Table2[[#All],[Excluded from Top 15 Run (Y/N)]],"N") -> 0 | J9: 0
A10: Adrichem Jeannie | D10: 1 | E10: 1 | F10: Non-Member | G10: =SUMIFS(Table2[[#All],[Overall Place]],Table2[[#All],[Surname / First Name]],$A10)/E10 -> 73 | H10: =SUMIFS(Table2[[#All],[Club Points]],Table2[[#All],[Surname / First Name]],'Click here for your run details'!A10,Table2[[#All],[Excluded from Top 15 Run (Y/N)]],"N") -> 0 | I10: =COUNTIFS(Table2[[#All],[Surname / First Name]],'Click here for your run details'!A10,Table2[[#All],[Excluded from Top 15 Run (Y/N)]],"N") -> 0 | J10: 0
A11: Agius Shawn | D11: 1 | E11: 1 | F11: Non-Member | G11: =SUMIFS(Table2[[#All],[Overall Place]],Table2[[#All],[Surname / First Name]],$A11)/E11 -> 12 | H11: =SUMIFS(Table2[[#All],[Club Points]],Table2[[#All],[Surname / First Name]],'Click here for your run details'!A11,Table2[[#All],[Excluded from Top 15 Run (Y/N)]],"N") -> 0 | I11: =COUNTIFS(Table2[[#All],[Surname / First Name]],'Click here for your run details'!A11,Table2[[#All],[Excluded from Top 15 Run (Y/N)]],"N") -> 0 | J11: 0
A12: Alexopoulos Imelda | B12: 2 | E12: 2 | F12: Member | G12: =SUMIFS(Table2[[#All],[Overall Place]],Table2[[#All],[Surname / First Name]],$A12)/E12 -> 60 | H12: =SUMIFS(Table2[[#All],[Club Points]],Table2[[#All],[Surname / First Name]],'Click here for your run details'!A12,Table2[[#All],[Excluded from Top 15 Run (Y/N)]],"N") -> 207 | I12: =COUNTIFS(Table2[[#All],[Surname / First Name]],'Click here for your run details'!A12,Table2[[#All],[Excluded from Top 15 Run (Y/N)]],"N") -> 2 | J12: 103.5
A13: Allen Nick | D13: 1 | E13: 1 | F13: Non-Member | G13: =SUMIFS(Table2[[#All],[Overall Place]],Table2[[#All],[Surname / First Name]],$A13)/E13 -> 46 | H13: =SUMIFS(Table2[[#All],[Club Points]],Table2[[#All],[Surname / First Name]],'Click here for your run details'!A13,Table2[[#All],[Excluded from Top 15 Run (Y/N)]],"N") -> 0 | I13: =COUNTIFS(Table2[[#All],[Surname / First Name]],'Click here for your run details'!A13,Table2[[#All],[Excluded from Top 15 Run (Y/N)]],"N") -> 0 | J13: 0
A14: Andersen David | D14: 2 | E14: 2 | F14: Non-Member | G14: =SUMIFS(Table2[[#All],[Overall Place]],Table2[[#All],[Surname / First Name]],$A14)/E14 -> 74 | H14: =SUMIFS(Table2[[#All],[Club Points]],Table2[[#All],[Surname / First Name]],'Click here for your run details'!A14,Table2[[#All],[Excluded from Top 15 Run (Y/N)]],"N") -> 0 | I14: =COUNTIFS(Table2[[#All],[Surname / First Name]],'Click here for your run details'!A14,Table2[[#All],[Excluded from Top 15 Run (Y/N)]],"N") -> 0 | J14: 0
A15: Anderson Ian | D15: 1 | E15: 1 | F15: Non-Member | G15: =SUMIFS(Table2[[#All],[Overall Place]],Table2[[#All],[Surname / First Name]],$A15)/E15 -> 5 | H15: =SUMIFS(Table2[[#All],[Club Points]],Table2[[#All],[Surname / First Name]],'Click here for your run details'!A15,Table2[[#All],[Excluded from Top 15 Run (Y/N)]],"N") -> 0 | I15: =COUNTIFS(Table2[[#All],[Surname / First Name]],'Click here for your run details'!A15,Table2[[#All],[Excluded from Top 15 Run (Y/N)]],"N") -> 0 | J15: 0
A16: Anderson Julia | D16: 2 | E16: 2 | F16: Non-Member | G16: =SUMIFS(Table2[[#All],[Overall Place]],Table2[[#All],[Surname / First Name]],$A16)/E16 -> 4 | H16: =SUMIFS(Table2[[#All],[Club Points]],Table2[[#All],[Surname / First Name]],'Click here for your run details'!A16,Table2[[#All],[Excluded from Top 15 Run (Y/N)]],"N") -> 0 | I16: =COUNTIFS(Table2[[#All],[Surname / First Name]],'Click here for your run details'!A16,Table2[[#All],[Excluded from Top 15 Run (Y/N)]],"N") -> 0 | J16: 0
A17: Andres Greg | D17: 1 | E17: 1 | F17: Non-Member | G17: =SUMIFS(Table2[[#All],[Overall Place]],Table2[[#All],[Surname / First Name]],$A17)/E17 -> 22 | H17: =SUMIFS(Table2[[#All],[Club Points]],Table2[[#All],[Surname / First Name]],'Click here for your run details'!A17,Table2[[#All],[Excluded from Top 15 Run (Y/N)]],"N") -> 0 | I17: =COUNTIFS(Table2[[#All],[Surname / First Name]],'Click here for your run details'!A17,Table2[[#All],[Excluded from Top 15 Run (Y/N)]],"N") -> 0 | J17: 0
A18: Andress Greg | D18: 2 | E18: 2 | F18: Non-Member | G18: =SUMIFS(Table2[[#All],[Overall Place]],Table2[[#All],[Surname / First Name]],$A18)/E18 -> 16 | H18: =SUMIFS(Table2[[#All],[Club Points]],Table2[[#All],[Surname / First Name]],'Click here for your run details'!A18,Table2[[#All],[Excluded from Top 15 Run (Y/N)]],"N") -> 0 | I18: =COUNTIFS(Table2[[#All],[Surname / First Name]],'Click here for your run details'!A18,Table2[[#All],[Excluded from Top 15 Run (Y/N)]],"N") -> 0 | J18: 0
A19: Argent Troy | D19: 4 | E19: 4 | F19: Non-Member | G19: =SUMIFS(Table2[[#All],[Overall Place]],Table2[[#All],[Surname / First Name]],$A19)/E19 -> 1.5 | H19: =SUMIFS(Table2[[#All],[Club Points]],Table2[[#All],[Surname / First Name]],'Click here for your run details'!A19,Table2[[#All],[Excluded from Top 15 Run (Y/N)]],"N") -> 0 | I19: =COUNTIFS(Table2[[#All],[Surname / First Name]],'Click here for your run details'!A19,Table2[[#All],[Excluded from Top 15 Run (Y/N)]],"N") -> 0 | J19: 0
A20: Armit Brian | B20: 10 | E20: 10 | F20: Member | G20: =SUMIFS(Table2[[#All],[Overall Place]],Table2[[#All],[Surname / First Name]],$A20)/E20 -> 52.5 | H20: =SUMIFS(Table2[[#All],[Club Points]],Table2[[#All],[Surname / First Name]],'Click here for your run details'!A20,Table2[[#All],[Excluded from Top 15 Run (Y/N)]],"N") -> 1082 | I20: =COUNTIFS(Table2[[#All],[Surname / First Name]],'Click here for your run details'!A20,Table2[[#All],[Excluded from Top 15 Run (Y/N)]],"N") -> 10 | J20: 108.2
A21: Armstrong Sophie | D21: 2 | E21: 2 | F21: Non-Member | G21: =SUMIFS(Table2[[#All],[Overall Place]],Table2[[#All],[Surname / First Name]],$A21)/E21 -> 67 | H21: =SUMIFS(Table2[[#All],[Club Points]],Table2[[#All],[Surname / First Name]],'Click here for your run details'!A21,Table2[[#All],[Excluded from Top 15 Run (Y/N)]],"N") -> 0 | I21: =COUNTIFS(Table2[[#All],[Surname / First Name]],'Click here for your run details'!A21,Table2[[#All],[Excluded from Top 15 Run (Y/N)]],"N") -> 0 | J21: 0
A22: Baker Nick | D22: 1 | E22: 1 | F22: Non-Member | G22: =SUMIFS(Table2[[#All],[Overall Place]],Table2[[#All],[Surname / First Name]],$A22)/E22 -> 52 | H22: =SUMIFS(Table2[[#All],[Club Points]],Table2[[#All],[Surname / First Name]],'Click here for your run details'!A22,Table2[[#All],[Excluded from Top 15 Run (Y/N)]],"N") -> 0 | I22: =COUNTIFS(Table2[[#All],[Surname / First Name]],'Click here for your run details'!A22,Table2[[#All],[Excluded from Top 15 Run (Y/N)]],"N") -> 0 | J22: 0
A23: Banaghan Peter | D23: 1 | E23: 1 | F23: Non-Member | G23: =SUMIFS(Table2[[#All],[Overall Place]],Table2[[#All],[Surname / First Name]],$A23)/E23 -> 49 | H23: =SUMIFS(Table2[[#All],[Club Points]],Table2[[#All],[Surname / First Name]],'Click here for your run details'!A23,Table2[[#All],[Excluded from Top 15 Run (Y/N)]],"N") -> 0 | I23: =COUNTIFS(Table2[[#All],[Surname / First Name]],'Click here for your run details'!A23,Table2[[#All],[Excluded from Top 15 Run (Y/N)]],"N") -> 0 | J23: 0
A24: Barber Belinda | B24: 3 | E24: 3 | F24: Member | G24: =SUMIFS(Table2[[#All],[Overall Place]],Table2[[#All],[Surname / First Name]],$A24)/E24 -> 74 | H24: =SUMIFS(Table2[[#All],[Club Points]],Table2[[#All],[Surname / First Name]],'Click here for your run details'!A24,Table2[[#All],[Excluded from Top 15 Run (Y/N)]],"N") -> 273 | I24: =COUNTIFS(Table2[[#All],[Surname / First Name]],'Click here for your run details'!A24,Table2[[#All],[Excluded from Top 15 Run (Y/N)]],"N") -> 3 | J24: 91
A25: Beacom-Halliday Om | D25: 2 | E25: 2 | F25: Non-Member | G25: =SUMIFS(Table2[[#All],[Overall Place]],Table2[[#All],[Surname / First Name]],$A25)/E25 -> 41 | H25: =SUMIFS(Table2[[#All],[Club Points]],Table2[[#All],[Surname / First Name]],'Click here for your run details'!A25,Table2[[#All],[Excluded from Top 15 Run (Y/N)]],"N") -> 0 | I25: =COUNTIFS(Table2[[#All],[Surname / First Name]],'Click here for your run details'!A25,Table2[[#All],[Excluded from Top 15 Run (Y/N)]],"N") -> 0 | J25: 0
A26: Beavis Dave | D26: 1 | E26: 1 | F26: Non-Member | G26: =SUMIFS(Table2[[#All],[Overall Place]],Table2[[#All],[Surname / First Name]],$A26)/E26 -> 46 | H26: =SUMIFS(Table2[[#All],[Club Points]],Table2[[#All],[Surname / First Name]],'Click here for your run details'!A26,Table2[[#All],[Excluded from Top 15 Run (Y/N)]],"N") -> 0 | I26: =COUNTIFS(Table2[[#All],[Surname / First Name]],'Click here for your run details'!A26,Table2[[#All],[Excluded from Top 15 Run (Y/N)]],"N") -> 0 | J26: 0
A27: BECK BETTY | B27: 1 | E27: 1 | F27: Member | G27: =SUMIFS(Table2[[#All],[Overall Place]],Table2[[#All],[Surname / First Name]],$A27)/E27 -> 109 | H27: =SUMIFS(Table2[[#All],[Club Points]],Table2[[#All],[Surname / First Name]],'Click here for your run details'!A27,Table2[[#All],[Excluded from Top 15 Run (Y/N)]],"N") -> 111 | I27: =COUNTIFS(Table2[[#All],[Surname / First Name]],'Click here for your run details'!A27,Table2[[#All],[Excluded from Top 15 Run (Y/N)]],"N") -> 1 | J27: 111
A28: Beil Lyndie | B28: 30 | E28: 30 | F28: Member | G28: =SUMIFS(Table2[[#All],[Overall Place]],Table2[[#All],[Surname / First Name]],$A28)/E28 -> 70.66666667 | H28: =SUMIFS(Table2[[#All],[Club Points]],Table2[[#All],[Surname / First Name]],'Click here for your run details'!A28,Table2[[#All],[Excluded from Top 15 Run (Y/N)]],"N") -> 1626 | I28: =COUNTIFS(Table2[[#All],[Surname / First Name]],'Click here for your run details'!A28,Table2[[#All],[Excluded from Top 15 Run (Y/N)]],"N") -> 15 | J28: 108.4
A29: Benedetto Giordan | D29: 3 | E29: 3 | F29: Non-Member | G29: =SUMIFS(Table2[[#All],[Overall Place]],Table2[[#All],[Surname / First Name]],$A29)/E29 -> 68 | H29: =SUMIFS(Table2[[#All],[Club Points]],Table2[[#All],[Surname / First Name]],'Click here for your run details'!A29,Table2[[#All],[Excluded from Top 15 Run (Y/N)]],"N") -> 0 | I29: =COUNTIFS(Table2[[#All],[Surname / First Name]],'Click here for your run details'!A29,Table2[[#All],[Excluded from Top 15 Run (Y/N)]],"N") -> 0 | J29: 0
A30: Bingly Sonia | D30: 1 | E30: 1 | F30: Non-Member | G30: =SUMIFS(Table2[[#All],[Overall Place]],Table2[[#All],[Surname / First Name]],$A30)/E30 -> 78 | H30: =SUMIFS(Table2[[#All],[Club Points]],Table2[[#All],[Surname / First Name]],'Click here for your run details'!A30,Table2[[#All],[Excluded from Top 15 Run (Y/N)]],"N") -> 0 | I30: =COUNTIFS(Table2[[#All],[Surname / First Name]],'Click here for your run details'!A30,Table2[[#All],[Excluded from Top 15 Run (Y/N)]],"N") -> 0 | J30: 0
A31: Bird Deven | D31: 2 | E31: 2 | F31: Non-Member | G31: =SUMIFS(Table2[[#All],[Overall Place]],Table2[[#All],[Surname / First Name]],$A31)/E31 -> 16.5 | H31: =SUMIFS(Table2[[#All],[Club Points]],Table2[[#All],[Surname / First Name]],'Click here for your run details'!A31,Table2[[#All],[Excluded from Top 15 Run (Y/N)]],"N") -> 0 | I31: =COUNTIFS(Table2[[#All],[Surname / First Name]],'Click here for your run details'!A31,Table2[[#All],[Excluded from Top 15 Run (Y/N)]],"N") -> 0 | J31: 0
A32: Bish John | D32: 1 | E32: 1 | F32: Non-Member | G32: =SUMIFS(Table2[[#All],[Overall Place]],Table2[[#All],[Surname / First Name]],$A32)/E32 -> 29 | H32: =SUMIFS(Table2[[#All],[Club Points]],Table2[[#All],[Surname / First Name]],'Click here for your run details'!A32,Table2[[#All],[Excluded from Top 15 Run (Y/N)]],"N") -> 0 | I32: =COUNTIFS(Table2[[#All],[Surname / First Name]],'Click here for your run details'!A32,Table2[[#All],[Excluded from Top 15 Run (Y/N)]],"N") -> 0 | J32: 0
A33: Bishop Kay | D33: 1 | E33: 1 | F33: Non-Member | G33: =SUMIFS(Table2[[#All],[Overall Place]],Table2[[#All],[Surname / First Name]],$A33)/E33 -> 97 | H33: =SUMIFS(Table2[[#All],[Club Points]],Table2[[#All],[Surname / First Name]],'Click here for your run details'!A33,Table2[[#All],[Excluded from Top 15 Run (Y/N)]],"N") -> 0 | I33: =COUNTIFS(Table2[[#All],[Surname / First Name]],'Click here for your run details'!A33,Table2[[#All],[Excluded from Top 15 Run (Y/N)]],"N") -> 0 | J33: 0
A34: Bisset Jim | D34: 1 | E34: 1 | F34: Non-Member | G34: =SUMIFS(Table2[[#All],[Overall Place]],Table2[[#All],[Surname / First Name]],$A34)/E34 -> 55 | H34: =SUMIFS(Table2[[#All],[Club Points]],Table2[[#All],[Surname / First Name]],'Click here for your run details'!A34,Table2[[#All],[Excluded from Top 15 Run (Y/N)]],"N") -> 0 | I34: =COUNTIFS(Table2[[#All],[Surname / First Name]],'Click here for your run details'!A34,Table2[[#All],[Excluded from Top 15 Run (Y/N)]],"N") -> 0 | J34: 0
A35: Boschen Matthew | B35: 17 | E35: 17 | F35: Member | G35: =SUMIFS(Table2[[#All],[Overall Place]],Table2[[#All],[Surname / First Name]],$A35)/E35 -> 7.941176471 | H35: =SUMIFS(Table2[[#All],[Club Points]],Table2[[#All],[Surname / First Name]],'Click here for your run details'!A35,Table2[[#All],[Excluded from Top 15 Run (Y/N)]],"N") -> 2191 | I35: =COUNTIFS(Table2[[#All],[Surname / First Name]],'Click here for your run details'!A35,Table2[[#All],[Excluded from Top 15 Run (Y/N)]],"N") -> 15 | J35: 146.0666667
A36: Bosco Vince | D36: 1 | E36: 1 | F36: Non-Member | G36: =SUMIFS(Table2[[#All],[Overall Place]],Table2[[#All],[Surname / First Name]],$A36)/E36 -> 1 | H36: =SUMIFS(Table2[[#All],[Club Points]],Table2[[#All],[Surname / First Name]],'Click here for your run details'!A36,Table2[[#All],[Excluded from Top 15 Run (Y/N)]],"N") -> 0 | I36: =COUNTIFS(Table2[[#All],[Surname / First Name]],'Click here for your run details'!A36,Table2[[#All],[Excluded from Top 15 Run (Y/N)]],"N") -> 0 | J36: 0
A37: Bosworth Clare | B37: 7 | E37: 7 | F37: Member | G37: =SUMIFS(Table2[[#All],[Overall Place]],Table2[[#All],[Surname / First Name]],$A37)/E37 -> 75.14285714 | H37: =SUMIFS(Table2[[#All],[Club Points]],Table2[[#All],[Surname / First Name]],'Click here for your run details'!A37,Table2[[#All],[Excluded from Top 15 Run (Y/N)]],"N") -> 629 | I37: =COUNTIFS(Table2[[#All],[Surname / First Name]],'Click here for your run details'!A37,Table2[[#All],[Excluded from Top 15 Run (Y/N)]],"N") -> 7 | J37: 89.85714286
A38: Bosworth Georill | D38: 1 | E38: 1 | F38: Non-Member | G38: =SUMIFS(Table2[[#All],[Overall Place]],Table2[[#All],[Surname / First Name]],$A38)/E38 -> 116 | H38: =SUMIFS(Table2[[#All],[Club Points]],Table2[[#All],[Surname / First Name]],'Click here for your run details'!A38,Table2[[#All],[Excluded from Top 15 Run (Y/N)]],"N") -> 0 | I38: =COUNTIFS(Table2[[#All],[Surname / First Name]],'Click here for your run details'!A38,Table2[[#All],[Excluded from Top 15 Run (Y/N)]],"N") -> 0 | J38: 0
A39: Bradley Fraser | B39: 24 | E39: 24 | F39: Member | G39: =SUMIFS(Table2[[#All],[Overall Place]],Table2[[#All],[Surname / First Name]],$A39)/E39 -> 28.95833333 | H39: =SUMIFS(Table2[[#All],[Club Points]],Table2[[#All],[Surname / First Name]],'Click here for your run details'!A39,Table2[[#All],[Excluded from Top 15 Run (Y/N)]],"N") -> 1965 | I39: =COUNTIFS(Table2[[#All],[Surname / First Name]],'Click here for your run details'!A39,Table2[[#All],[Excluded from Top 15 Run (Y/N)]],"N") -> 15 | J39: 131
A40: Bradshaw Carola | D40: 1 | E40: 1 | F40: Non-Member | G40: =SUMIFS(Table2[[#All],[Overall Place]],Table2[[#All],[Surname / First Name]],$A40)/E40 -> 48 | H40: =SUMIFS(Table2[[#All],[Club Points]],Table2[[#All],[Surname / First Name]],'Click here for your run details'!A40,Table2[[#All],[Excluded from Top 15 Run (Y/N)]],"N") -> 0 | I40: =COUNTIFS(Table2[[#All],[Surname / First Name]],'Click here for your run details'!A40,Table2[[#All],[Excluded from Top 15 Run (Y/N)]],"N") -> 0 | J40: 0
A41: Brodmann Ariadne | D41: 1 | E41: 1 | F41: Non-Member | G41: =SUMIFS(Table2[[#All],[Overall Place]],Table2[[#All],[Surname / First Name]],$A41)/E41 -> 81 | H41: =SUMIFS(Table2[[#All],[Club Points]],Table2[[#All],[Surname / First Name]],'Click here for your run details'!A41,Table2[[#All],[Excluded from Top 15 Run (Y/N)]],"N") -> 0 | I41: =COUNTIFS(Table2[[#All],[Surname / First Name]],'Click here for your run details'!A41,Table2[[#All],[Excluded from Top 15 Run (Y/N)]],"N") -> 0 | J41: 0
A42: Bromham Gary | D42: 1 | E42: 1 | F42: Non-Member | G42: =SUMIFS(Table2[[#All],[Overall Place]],Table2[[#All],[Surname / First Name]],$A42)/E42 -> 61 | H42: =SUMIFS(Table2[[#All],[Club Points]],Table2[[#All],[Surname / First Name]],'Click here for your run details'!A42,Table2[[#All],[Excluded from Top 15 Run (Y/N)]],"N") -> 0 | I42: =COUNTIFS(Table2[[#All],[Surname / First Name]],'Click here for your run details'!A42,Table2[[#All],[Excluded from Top 15 Run (Y/N)]],"N") -> 0 | J42: 0
A43: Brooke-Taylor David | B43: 13 | E43: 13 | F43: Member | G43: =SUMIFS(Table2[[#All],[Overall Place]],Table2[[#All],[Surname / First Name]],$A43)/E43 -> 72.23076923 | H43: =SUMIFS(Table2[[#All],[Club Points]],Table2[[#All],[Surname / First Name]],'Click here for your run details'!A43,Table2[[#All],[Excluded from Top 15 Run (Y/N)]],"N") -> 1260 | I43: =COUNTIFS(Table2[[#All],[Surname / First Name]],'Click here for your run details'!A43,Table2[[#All],[Excluded from Top 15 Run (Y/N)]],"N") -> 13 | J43: 96.92307692
A44: Brooks Steve | B44: 2 | E44: 2 | F44: Member | G44: =SUMIFS(Table2[[#All],[Overall Place]],Table2[[#All],[Surname / First Name]],$A44)/E44 -> 38 | H44: =SUMIFS(Table2[[#All],[Club Points]],Table2[[#All],[Surname / First Name]],'Click here for your run details'!A44,Table2[[#All],[Excluded from Top 15 Run (Y/N)]],"N") -> 236 | I44: =COUNTIFS(Table2[[#All],[Surname / First Name]],'Click here for your run details'!A44,Table2[[#All],[Excluded from Top 15 Run (Y/N)]],"N") -> 2 | J44: 118
A45: Brown Jenny | B45: 20 | E45: 20 | F45: Member | G45: =SUMIFS(Table2[[#All],[Overall Place]],Table2[[#All],[Surname / First Name]],$A45)/E45 -> 65.2 | H45: =SUMIFS(Table2[[#All],[Club Points]],Table2[[#All],[Surname / First Name]],'Click here for your run details'!A45,Table2[[#All],[Excluded from Top 15 Run (Y/N)]],"N") -> 1616 | I45: =COUNTIFS(Table2[[#All],[Surname / First Name]],'Click here for your run details'!A45,Table2[[#All],[Excluded from Top 15 Run (Y/N)]],"N") -> 15 | J45: 107.7333333
A46: Brown Trevor | D46: 1 | E46: 1 | F46: Non-Member | G46: =SUMIFS(Table2[[#All],[Overall Place]],Table2[[#All],[Surname / First Name]],$A46)/E46 -> 28 | H46: =SUMIFS(Table2[[#All],[Club Points]],Table2[[#All],[Surname / First Name]],'Click here for your run details'!A46,Table2[[#All],[Excluded from Top 15 Run (Y/N)]],"N") -> 0 | I46: =COUNTIFS(Table2[[#All],[Surname / First Name]],'Click here for your run details'!A46,Table2[[#All],[Excluded from Top 15 Run (Y/N)]],"N") -> 0 | J46: 0
A47: Brunker Julie | B47: 14 | E47: 14 | F47: Member | G47: =SUMIFS(Table2[[#All],[Overall Place]],Table2[[#All],[Surname / First Name]],$A47)/E47 -> 25.21428571 | H47: =SUMIFS(Table2[[#All],[Club Points]],Table2[[#All],[Surname / First Name]],'Click here for your run details'!A47,Table2[[#All],[Excluded from Top 15 Run (Y/N)]],"N") -> 1824 | I47: =COUNTIFS(Table2[[#All],[Surname / First Name]],'Click here for your run details'!A47,Table2[[#All],[Excluded from Top 15 Run (Y/N)]],"N") -> 14 | J47: 130.2857143
A48: Buchholz Mark | B48: 21 | E48: 21 | F48: Member | G48: =SUMIFS(Table2[[#All],[Overall Place]],Table2[[#All],[Surname / First Name]],$A48)/E48 -> 2.904761905 | H48: =SUMIFS(Table2[[#All],[Club Points]],Table2[[#All],[Surname / First Name]],'Click here for your run details'!A48,Table2[[#All],[Excluded from Top 15 Run (Y/N)]],"N") -> 2239 | I48: =COUNTIFS(Table2[[#All],[Surname / First Name]],'Click here for your run details'!A48,Table2[[#All],[Excluded from Top 15 Run (Y/N)]],"N") -> 15 | J48: 149.2666667
A49: Budden Craig | D49: 7 | E49: 7 | F49: Non-Member | G49: =SUMIFS(Table2[[#All],[Overall Place]],Table2[[#All],[Surname / First Name]],$A49)/E49 -> 3.857142857 | H49: =SUMIFS(Table2[[#All],[Club Points]],Table2[[#All],[Surname / First Name]],'Click here for your run details'!A49,Table2[[#All],[Excluded from Top 15 Run (Y/N)]],"N") -> 0 | I49: =COUNTIFS(Table2[[#All],[Surname / First Name]],'Click here for your run details'!A49,Table2[[#All],[Excluded from Top 15 Run (Y/N)]],"N") -> 0 | J49: 0
A50: Burns Norm | D50: 1 | E50: 1 | F50: Non-Member | G50: =SUMIFS(Table2[[#All],[Overall Place]],Table2[[#All],[Surname / First Name]],$A50)/E50 -> 3 | H50: =SUMIFS(Table2[[#All],[Club Points]],Table2[[#All],[Surname / First Name]],'Click here for your run details'!A50,Table2[[#All],[Excluded from Top 15 Run (Y/N)]],"N") -> 0 | I50: =COUNTIFS(Table2[[#All],[Surname / First Name]],'Click here for your run details'!A50,Table2[[#All],[Excluded from Top 15 Run (Y/N)]],"N") -> 0 | J50: 0
A51: Burrowe Melanie | D51: 1 | E51: 1 | F51: Non-Member | G51: =SUMIFS(Table2[[#All],[Overall Place]],Table2[[#All],[Surname / First Name]],$A51)/E51 -> 119 | H51: =SUMIFS(Table2[[#All],[Club Points]],Table2[[#All],[Surname / First Name]],'Click here for your run details'!A51,Table2[[#All],[Excluded from Top 15 Run (Y/N)]],"N") -> 0 | I51: =COUNTIFS(Table2[[#All],[Surname / First Name]],'Click here for your run details'!A51,Table2[[#All],[Excluded from Top 15 Run (Y/N)]],"N") -> 0 | J51: 0
A52: Caddy Tim | D52: 1 | E52: 1 | F52: Non-Member | G52: =SUMIFS(Table2[[#All],[Overall Place]],Table2[[#All],[Surname / First Name]],$A52)/E52 -> 37 | H52: =SUMIFS(Table2[[#All],[Club Points]],Table2[[#All],[Surname / First Name]],'Click here for your run details'!A52,Table2[[#All],[Excluded from Top 15 Run (Y/N)]],"N") -> 0 | I52: =COUNTIFS(Table2[[#All],[Surname / First Name]],'Click here for your run details'!A52,Table2[[#All],[Excluded from Top 15 Run (Y/N)]],"N") -> 0 | J52: 0
A53: Cahill Rachel | D53: 4 | E53: 4 | F53: Non-Member | G53: =SUMIFS(Table2[[#All],[Overall Place]],Table2[[#All],[Surname / First Name]],$A53)/E53 -> 57.25 | H53: =SUMIFS(Table2[[#All],[Club Points]],Table2[[#All],[Surname / First Name]],'Click here for your run details'!A53,Table2[[#All],[Excluded from Top 15 Run (Y/N)]],"N") -> 0 | I53: =COUNTIFS(Table2[[#All],[Surname / First Name]],'Click here for your run details'!A53,Table2[[#All],[Excluded from Top 15 Run (Y/N)]],"N") -> 0 | J53: 0
A54: Camakaris Catrina | B54: 11 | E54: 11 | F54: Member | G54: =SUMIFS(Table2[[#All],[Overall Place]],Table2[[#All],[Surname / First Name]],$A54)/E54 -> 76.72727273 | H54: =SUMIFS(Table2[[#All],[Club Points]],Table2[[#All],[Surname / First Name]],'Click here for your run details'!A54,Table2[[#All],[Excluded from Top 15 Run (Y/N)]],"N") -> 996 | I54: =COUNTIFS(Table2[[#All],[Surname / First Name]],'Click here for your run details'!A54,Table2[[#All],[Excluded from Top 15 Run (Y/N)]],"N") -> 11 | J54: 90.54545455
A55: Cameron Susanah | D55: 2 | E55: 2 | F55: Non-Member | G55: =SUMIFS(Table2[[#All],[Overall Place]],Table2[[#All],[Surname / First Name]],$A55)/E55 -> 90.5 | H55: =SUMIFS(Table2[[#All],[Club Points]],Table2[[#All],[Surname / First Name]],'Click here for your run details'!A55,Table2[[#All],[Excluded from Top 15 Run (Y/N)]],"N") -> 0 | I55: =COUNTIFS(Table2[[#All],[Surname / First Name]],'Click here for your run details'!A55,Table2[[#All],[Excluded from Top 15 Run (Y/N)]],"N") -> 0 | J55: 0
A56: Carter Brendan | B56: 13 | E56: 13 | F56: Member | G56: =SUMIFS(Table2[[#All],[Overall Place]],Table2[[#All],[Surname / First Name]],$A56)/E56 -> 21.38461538 | H56: =SUMIFS(Table2[[#All],[Club Points]],Table2[[#All],[Surname / First Name]],'Click here for your run details'!A56,Table2[[#All],[Excluded from Top 15 Run (Y/N)]],"N") -> 1737 | I56: =COUNTIFS(Table2[[#All],[Surname / First Name]],'Click here for your run details'!A56,Table2[[#All],[Excluded from Top 15 Run (Y/N)]],"N") -> 13 | J56: 133.6153846
A57: Catterall Ian R | B57: 5 | E57: 5 | F57: Member | G57: =SUMIFS(Table2[[#All],[Overall Place]],Table2[[#All],[Surname / First Name]],$A57)/E57 -> 71.6 | H57: =SUMIFS(Table2[[#All],[Club Points]],Table2[[#All],[Surname / First Name]],'Click here for your run details'!A57,Table2[[#All],[Excluded from Top 15 Run (Y/N)]],"N") -> 483 | I57: =COUNTIFS(Table2[[#All],[Surname / First Name]],'Click here for your run details'!A57,Table2[[#All],[Excluded from Top 15 Run (Y/N)]],"N") -> 5 | J57: 96.6
A58: Chapman-Mears Verity | D58: 1 | E58: 1 | F58: Non-Member | G58: =SUMIFS(Table2[[#All],[Overall Place]],Table2[[#All],[Surname / First Name]],$A58)/E58 -> 66 | H58: =SUMIFS(Table2[[#All],[Club Points]],Table2[[#All],[Surname / First Name]],'Click here for your run details'!A58,Table2[[#All],[Excluded from Top 15 Run (Y/N)]],"N") -> 0 | I58: =COUNTIFS(Table2[[#All],[Surname / First Name]],'Click here for your run details'!A58,Table2[[#All],[Excluded from Top 15 Run (Y/N)]],"N") -> 0 | J58: 0
A59: Cheers Scott | D59: 4 | E59: 4 | F59: Non-Member | G59: =SUMIFS(Table2[[#All],[Overall Place]],Table2[[#All],[Surname / First Name]],$A59)/E59 -> 27.75 | H59: =SUMIFS(Table2[[#All],[Club Points]],Table2[[#All],[Surname / First Name]],'Click here for your run details'!A59,Table2[[#All],[Excluded from Top 15 Run (Y/N)]],"N") -> 0 | I59: =COUNTIFS(Table2[[#All],[Surname / First Name]],'Click here for your run details'!A59,Table2[[#All],[Excluded from Top 15 Run (Y/N)]],"N") -> 0 | J59: 0
A60: Clifford Tayla | D60: 2 | E60: 2 | F60: Non-Member | G60: =SUMIFS(Table2[[#All],[Overall Place]],Table2[[#All],[Surname / First Name]],$A60)/E60 -> 29 | H60: =SUMIFS(Table2[[#All],[Club Points]],Table2[[#All],[Surname / First Name]],'Click here for your run details'!A60,Table2[[#All],[Excluded from Top 15 Run (Y/N)]],"N") -> 0 | I60: =COUNTIFS(Table2[[#All],[Surname / First Name]],'Click here for your run details'!A60,Table2[[#All],[Excluded from Top 15 Run (Y/N)]],"N") -> 0 | J60: 0
A61: Coe Damian | D61: 1 | E61: 1 | F61: Non-Member | G61: =SUMIFS(Table2[[#All],[Overall Place]],Table2[[#All],[Surname / First Name]],$A61)/E61 -> 34 | H61: =SUMIFS(Table2[[#All],[Club Points]],Table2[[#All],[Surname / First Name]],'Click here for your run details'!A61,Table2[[#All],[Excluded from Top 15 Run (Y/N)]],"N") -> 0 | I61: =COUNTIFS(Table2[[#All],[Surname / First Name]],'Click here for your run details'!A61,Table2[[#All],[Excluded from Top 15 Run (Y/N)]],"N") -> 0 | J61: 0
A62: Coelho Dilip | D62: 2 | E62: 2 | F62: Non-Member | G62: =SUMIFS(Table2[[#All],[Overall Place]],Table2[[#All],[Surname / First Name]],$A62)/E62 -> 1.5 | H62: =SUMIFS(Table2[[#All],[Club Points]],Table2[[#All],[Surname / First Name]],'Click here for your run details'!A62,Table2[[#All],[Excluded from Top 15 Run (Y/N)]],"N") -> 0 | I62: =COUNTIFS(Table2[[#All],[Surname / First Name]],'Click here for your run details'!A62,Table2[[#All],[Excluded from Top 15 Run (Y/N)]],"N") -> 0 | J62: 0
A63: Collins Sarah | B63: 10 | E63: 10 | F63: Member | G63: =SUMIFS(Table2[[#All],[Overall Place]],Table2[[#All],[Surname / First Name]],$A63)/E63 -> 53.3 | H63: =SUMIFS(Table2[[#All],[Club Points]],Table2[[#All],[Surname / First Name]],'Click here for your run details'!A63,Table2[[#All],[Excluded from Top 15 Run (Y/N)]],"N") -> 1074 | I63: =COUNTIFS(Table2[[#All],[Surname / First Name]],'Click here for your run details'!A63,Table2[[#All],[Excluded from Top 15 Run (Y/N)]],"N") -> 10 | J63: 107.4
A64: Connor Jade | D64: 1 | E64: 1 | F64: Non-Member | G64: =SUMIFS(Table2[[#All],[Overall Place]],Table2[[#All],[Surname / First Name]],$A64)/E64 -> 54 | H64: =SUMIFS(Table2[[#All],[Club Points]],Table2[[#All],[Surname / First Name]],'Click here for your run details'!A64,Table2[[#All],[Excluded from Top 15 Run (Y/N)]],"N") -> 0 | I64: =COUNTIFS(Table2[[#All],[Surname / First Name]],'Click here for your run details'!A64,Table2[[#All],[Excluded from Top 15 Run (Y/N)]],"N") -> 0 | J64: 0
A65: Coons-Mueller Sherry | D65: 1 | E65: 1 | F65: Non-Member | G65: =SUMIFS(Table2[[#All],[Overall Place]],Table2[[#All],[Surname / First Name]],$A65)/E65 -> 58 | H65: =SUMIFS(Table2[[#All],[Club Points]],Table2[[#All],[Surname / First Name]],'Click here for your run details'!A65,Table2[[#All],[Excluded from Top 15 Run (Y/N)]],"N") -> 0 | I65: =COUNTIFS(Table2[[#All],[Surname / First Name]],'Click here for your run details'!A65,Table2[[#All],[Excluded from Top 15 Run (Y/N)]],"N") -> 0 | J65: 0
A66: Cooper Belinda | D66: 1 | E66: 1 | F66: Non-Member | G66: =SUMIFS(Table2[[#All],[Overall Place]],Table2[[#All],[Surname / First Name]],$A66)/E66 -> 26 | H66: =SUMIFS(Table2[[#All],[Club Points]],Table2[[#All],[Surname / First Name]],'Click here for your run details'!A66,Table2[[#All],[Excluded from Top 15 Run (Y/N)]],"N") -> 0 | I66: =COUNTIFS(Table2[[#All],[Surname / First Name]],'Click here for your run details'!A66,Table2[[#All],[Excluded from Top 15 Run (Y/N)]],"N") -> 0 | J66: 0
A67: Cooper Ben | D67: 1 | E67: 1 | F67: Non-Member | G67: =SUMIFS(Table2[[#All],[Overall Place]],Table2[[#All],[Surname / First Name]],$A67)/E67 -> 1 | H67: =SUMIFS(Table2[[#All],[Club Points]],Table2[[#All],[Surname / First Name]],'Click here for your run details'!A67,Table2[[#All],[Excluded from Top 15 Run (Y/N)]],"N") -> 0 | I67: =COUNTIFS(Table2[[#All],[Surname / First Name]],'Click here for your run details'!A67,Table2[[#All],[Excluded from Top 15 Run (Y/N)]],"N") -> 0 | J67: 0
A68: Copp Philip | B68: 7 | E68: 7 | F68: Member | G68: =SUMIFS(Table2[[#All],[Overall Place]],Table2[[#All],[Surname / First Name]],$A68)/E68 -> 4.714285714 | H68: =SUMIFS(Table2[[#All],[Club Points]],Table2[[#All],[Surname / First Name]],'Click here for your run details'!A68,Table2[[#All],[Excluded from Top 15 Run (Y/N)]],"N") -> 1031 | I68: =COUNTIFS(Table2[[#All],[Surname / First Name]],'Click here for your run details'!A68,Table2[[#All],[Excluded from Top 15 Run (Y/N)]],"N") -> 7 | J68: 147.2857143
A69: Corkhill Richard | D69: 1 | E69: 1 | F69: Non-Member | G69: =SUMIFS(Table2[[#All],[Overall Place]],Table2[[#All],[Surname / First Name]],$A69)/E69 -> 71 | H69: =SUMIFS(Table2[[#All],[Club Points]],Table2[[#All],[Surname / First Name]],'Click here for your run details'!A69,Table2[[#All],[Excluded from Top 15 Run (Y/N)]],"N") -> 0 | I69: =COUNTIFS(Table2[[#All],[Surname / First Name]],'Click here for your run details'!A69,Table2[[#All],[Excluded from Top 15 Run (Y/N)]],"N") -> 0 | J69: 0
A70: Cornell Janet | D70: 3 | E70: 3 | F70: Non-Member | G70: =SUMIFS(Table2[[#All],[Overall Place]],Table2[[#All],[Surname / First Name]],$A70)/E70 -> 65.66666667 | H70: =SUMIFS(Table2[[#All],[Club Points]],Table2[[#All],[Surname / First Name]],'Click here for your run details'!A70,Table2[[#All],[Excluded from Top 15 Run (Y/N)]],"N") -> 0 | I70: =COUNTIFS(Table2[[#All],[Surname / First Name]],'Click here for your run details'!A70,Table2[[#All],[Excluded from Top 15 Run (Y/N)]],"N") -> 0 | J70: 0
A71: Costello Emma | D71: 1 | E71: 1 | F71: Non-Member | G71: =SUMIFS(Table2[[#All],[Overall Place]],Table2[[#All],[Surname / First Name]],$A71)/E71 -> 61 | H71: =SUMIFS(Table2[[#All],[Club Points]],Table2[[#All],[Surname / First Name]],'Click here for your run details'!A71,Table2[[#All],[Excluded from Top 15 Run (Y/N)]],"N") -> 0 | I71: =COUNTIFS(Table2[[#All],[Surname / First Name]],'Click here for your run details'!A71,Table2[[#All],[Excluded from Top 15 Run (Y/N)]],"N") -> 0 | J71: 0
A72: Cox Sherry | B72: 19 | E72: 19 | F72: Member | G72: =SUMIFS(Table2[[#All],[Overall Place]],Table2[[#All],[Surname / First Name]],$A72)/E72 -> 42.21052632 | H72: =SUMIFS(Table2[[#All],[Club Points]],Table2[[#All],[Surname / First Name]],'Click here for your run details'!A72,Table2[[#All],[Excluded from Top 15 Run (Y/N)]],"N") -> 1795 | I72: =COUNTIFS(Table2[[#All],[Surname / First Name]],'Click here for your run details'!A72,Table2[[#All],[Excluded from Top 15 Run (Y/N)]],"N") -> 15 | J72: =IFERROR(H72/I72,0) -> 119.6666667
A73: Crawford Les | B73: 27 | E73: 27 | F73: =IF(AND(SUM(B73:C73)>0,SUM(B73:C73)<99),"Member","Non-Member") -> Member | G73: =SUMIFS(Table2[[#All],[Overall Place]],Table2[[#All],[Surname / First Name]],$A73)/E73 -> 21.59259259 | H73: =SUMIFS(Table2[[#All],[Club Points]],Table2[[#All],[Surname / First Name]],'Click here for your run details'!A73,Table2[[#All],[Excluded from Top 15 Run (Y/N)]],"N") -> 2034 | I73: =COUNTIFS(Table2[[#All],[Surname / First Name]],'Click here for your run details'!A73,Table2[[#All],[Excluded from Top 15 Run (Y/N)]],"N") -> 15 | J73: 135.6
A74: Crawley John | D74: 1 | E74: 1 | F74: Non-Member | G74: =SUMIFS(Table2[[#All],[Overall Place]],Table2[[#All],[Surname / First Name]],$A74)/E74 -> 29 | H74: =SUMIFS(Table2[[#All],[Club Points]],Table2[[#All],[Surname / First Name]],'Click here for your run details'!A74,Table2[[#All],[Excluded from Top 15 Run (Y/N)]],"N") -> 0 | I74: =COUNTIFS(Table2[[#All],[Surname / First Name]],'Click here for your run details'!A74,Table2[[#All],[Excluded from Top 15 Run (Y/N)]],"N") -> 0 | J74: 0
A75: Cullen David | B75: 14 | C75: 2 | E75: 16 | F75: Member | G75: =SUMIFS(Table2[[#All],[Overall Place]],Table2[[#All],[Surname / First Name]],$A75)/E75 -> 25.5625 | H75: =SUMIFS(Table2[[#All],[Club Points]],Table2[[#All],[Surname / First Name]],'Click here for your run details'!A75,Table2[[#All],[Excluded from Top 15 Run (Y/N)]],"N") -> 1846 | I75: =COUNTIFS(Table2[[#All],[Surname / First Name]],'Click here for your run details'!A75,Table2[[#All],[Excluded from Top 15 Run (Y/N)]],"N") -> 14 | J75: 131.8571429
A76: Daamen Antony | B76: 23 | E76: 23 | F76: Member | G76: =SUMIFS(Table2[[#All],[Overall Place]],Table2[[#All],[Surname / First Name]],$A76)/E76 -> 55 | H76: =SUMIFS(Table2[[#All],[Club Points]],Table2[[#All],[Surname / First Name]],'Click here for your run details'!A76,Table2[[#All],[Excluded from Top 15 Run (Y/N)]],"N") -> 1725 | I76: =COUNTIFS(Table2[[#All],[Surname / First Name]],'Click here for your run details'!A76,Table2[[#All],[Excluded from Top 15 Run (Y/N)]],"N") -> 15 | J76: 115
A77: Daniel Peter | B77: 4 | E77: 4 | F77: Member | G77: =SUMIFS(Table2[[#All],[Overall Place]],Table2[[#All],[Surname / First Name]],$A77)/E77 -> 66 | H77: =SUMIFS(Table2[[#All],[Club Points]],Table2[[#All],[Surname / First Name]],'Click here for your run details'!A77,Table2[[#All],[Excluded from Top 15 Run (Y/N)]],"N") -> 387 | I77: =COUNTIFS(Table2[[#All],[Surname / First Name]],'Click here for your run details'!A77,Table2[[#All],[Excluded from Top 15 Run (Y/N)]],"N") -> 4 | J77: 96.75
A78: Daniel Ryan | D78: 3 | E78: 3 | F78: Non-Member | G78: =SUMIFS(Table2[[#All],[Overall Place]],Table2[[#All],[Surname / First Name]],$A78)/E78 -> 68 | H78: =SUMIFS(Table2[[#All],[Club Points]],Table2[[#All],[Surname / First Name]],'Click here for your run details'!A78,Table2[[#All],[Excluded from Top 15 Run (Y/N)]],"N") -> 0 | I78: =COUNTIFS(Table2[[#All],[Surname / First Name]],'Click here for your run details'!A78,Table2[[#All],[Excluded from Top 15 Run (Y/N)]],"N") -> 0 | J78: 0
A79: Daroon Lowe | D79: 1 | E79: 1 | F79: Non-Member | G79: =SUMIFS(Table2[[#All],[Overall Place]],Table2[[#All],[Surname / First Name]],$A79)/E79 -> 38 | H79: =SUMIFS(Table2[[#All],[Club Points]],Table2[[#All],[Surname / First Name]],'Click here for your run details'!A79,Table2[[#All],[Excluded from Top 15 Run (Y/N)]],"N") -> 0 | I79: =COUNTIFS(Table2[[#All],[Surname / First Name]],'Click here for your run details'!A79,Table2[[#All],[Excluded from Top 15 Run (Y/N)]],"N") -> 0 | J79: 0
A80: Daunt Belinda | B80: 3 | E80: 3 | F80: Member | G80: =SUMIFS(Table2[[#All],[Overall Place]],Table2[[#All],[Surname / First Name]],$A80)/E80 -> 48.33333333 | H80: =SUMIFS(Table2[[#All],[Club Points]],Table2[[#All],[Surname / First Name]],'Click here for your run details'!A80,Table2[[#All],[Excluded from Top 15 Run (Y/N)]],"N") -> 338 | I80: =COUNTIFS(Table2[[#All],[Surname / First Name]],'Click here for your run details'!A80,Table2[[#All],[Excluded from Top 15 Run (Y/N)]],"N") -> 3 | J80: 112.6666667
A81: Davies Glen | B81: 7 | E81: 7 | F81: Member | G81: =SUMIFS(Table2[[#All],[Overall Place]],Table2[[#All],[Surname / First Name]],$A81)/E81 -> 40.57142857 | H81: =SUMIFS(Table2[[#All],[Club Points]],Table2[[#All],[Surname / First Name]],'Click here for your run details'!A81,Table2[[#All],[Excluded from Top 15 Run (Y/N)]],"N") -> 827 | I81: =COUNTIFS(Table2[[#All],[Surname / First Name]],'Click here for your run details'!A81,Table2[[#All],[Excluded from Top 15 Run (Y/N)]],"N") -> 7 | J81: 118.1428571
A82: Davies Liz | D82: 1 | E82: 1 | F82: Non-Member | G82: =SUMIFS(Table2[[#All],[Overall Place]],Table2[[#All],[Surname / First Name]],$A82)/E82 -> 21 | H82: =SUMIFS(Table2[[#All],[Club Points]],Table2[[#All],[Surname / First Name]],'Click here for your run details'!A82,Table2[[#All],[Excluded from Top 15 Run (Y/N)]],"N") -> 0 | I82: =COUNTIFS(Table2[[#All],[Surname / First Name]],'Click here for your run details'!A82,Table2[[#All],[Excluded from Top 15 Run (Y/N)]],"N") -> 0 | J82: 0
A83: Dawes Mike | D83: 1 | E83: 1 | F83: Non-Member | G83: =SUMIFS(Table2[[#All],[Overall Place]],Table2[[#All],[Surname / First Name]],$A83)/E83 -> 69 | H83: =SUMIFS(Table2[[#All],[Club Points]],Table2[[#All],[Surname / First Name]],'Click here for your run details'!A83,Table2[[#All],[Excluded from Top 15 Run (Y/N)]],"N") -> 0 | I83: =COUNTIFS(Table2[[#All],[Surname / First Name]],'Click here for your run details'!A83,Table2[[#All],[Excluded from Top 15 Run (Y/N)]],"N") -> 0 | J83: 0
A84: Dawson William | B84: 2 | E84: 2 | F84: Member | G84: =SUMIFS(Table2[[#All],[Overall Place]],Table2[[#All],[Surname / First Name]],$A84)/E84 -> 58.5 | H84: =SUMIFS(Table2[[#All],[Club Points]],Table2[[#All],[Surname / First Name]],'Click here for your run details'!A84,Table2[[#All],[Excluded from Top 15 Run (Y/N)]],"N") -> 218 | I84: =COUNTIFS(Table2[[#All],[Surname / First Name]],'Click here for your run details'!A84,Table2[[#All],[Excluded from Top 15 Run (Y/N)]],"N") -> 2 | J84: 109
A85: Day Paul | B85: 15 | E85: 15 | F85: Member | G85: =SUMIFS(Table2[[#All],[Overall Place]],Table2[[#All],[Surname / First Name]],$A85)/E85 -> 26.26666667 | H85: =SUMIFS(Table2[[#All],[Club Points]],Table2[[#All],[Surname / First Name]],'Click here for your run details'!A85,Table2[[#All],[Excluded from Top 15 Run (Y/N)]],"N") -> 1946 | I85: =COUNTIFS(Table2[[#All],[Surname / First Name]],'Click here for your run details'!A85,Table2[[#All],[Excluded from Top 15 Run (Y/N)]],"N") -> 15 | J85: 129.7333333
A86: De Jeresy Louise | D86: 1 | E86: 1 | F86: Non-Member | G86: =SUMIFS(Table2[[#All],[Overall Place]],Table2[[#All],[Surname / First Name]],$A86)/E86 -> 72 | H86: =SUMIFS(Table2[[#All],[Club Points]],Table2[[#All],[Surname / First Name]],'Click here for your run details'!A86,Table2[[#All],[Excluded from Top 15 Run (Y/N)]],"N") -> 0 | I86: =COUNTIFS(Table2[[#All],[Surname / First Name]],'Click here for your run details'!A86,Table2[[#All],[Excluded from Top 15 Run (Y/N)]],"N") -> 0 | J86: 0
A87: De Jeresy Stephen | D87: 1 | E87: 1 | F87: Non-Member | G87: =SUMIFS(Table2[[#All],[Overall Place]],Table2[[#All],[Surname / First Name]],$A87)/E87 -> 71 | H87: =SUMIFS(Table2[[#All],[Club Points]],Table2[[#All],[Surname / First Name]],'Click here for your run details'!A87,Table2[[#All],[Excluded from Top 15 Run (Y/N)]],"N") -> 0 | I87: =COUNTIFS(Table2[[#All],[Surname / First Name]],'Click here for your run details'!A87,Table2[[#All],[Excluded from Top 15 Run (Y/N)]],"N") -> 0 | J87: 0
A88: De Jersey Louise | D88: 1 | E88: 1 | F88: Non-Member | G88: =SUMIFS(Table2[[#All],[Overall Place]],Table2[[#All],[Surname / First Name]],$A88)/E88 -> 71 | H88: =SUMIFS(Table2[[#All],[Club Points]],Table2[[#All],[Surname / First Name]],'Click here for your run details'!A88,Table2[[#All],[Excluded from Top 15 Run (Y/N)]],"N") -> 0 | I88: =COUNTIFS(Table2[[#All],[Surname / First Name]],'Click here for your run details'!A88,Table2[[#All],[Excluded from Top 15 Run (Y/N)]],"N") -> 0 | J88: 0
A89: De Jersey Oliver | D89: 1 | E89: 1 | F89: Non-Member | G89: =SUMIFS(Table2[[#All],[Overall Place]],Table2[[#All],[Surname / First Name]],$A89)/E89 -> 13 | H89: =SUMIFS(Table2[[#All],[Club Points]],Table2[[#All],[Surname / First Name]],'Click here for your run details'!A89,Table2[[#All],[Excluded from Top 15 Run (Y/N)]],"N") -> 0 | I89: =COUNTIFS(Table2[[#All],[Surname / First Name]],'Click here for your run details'!A89,Table2[[#All],[Excluded from Top 15 Run (Y/N)]],"N") -> 0 | J89: =IFERROR(H89/I89,0) -> 0
A90: De Jersey Sophie | D90: 1 | E90: 1 | F90: Non-Member | G90: =SUMIFS(Table2[[#All],[Overall Place]],Table2[[#All],[Surname / First Name]],$A90)/E90 -> 54 | H90: =SUMIFS(Table2[[#All],[Club Points]],Table2[[#All],[Surname / First Name]],'Click here for your run details'!A90,Table2[[#All],[Excluded from Top 15 Run (Y/N)]],"N") -> 0 | I90: =COUNTIFS(Table2[[#All],[Surname / First Name]],'Click here for your run details'!A90,Table2[[#All],[Excluded from Top 15 Run (Y/N)]],"N") -> 0 | J90: =IFERROR(H90/I90,0) -> 0
A91: De Jersey Stephen | D91: 1 | E91: 1 | F91: Non-Member | G91: =SUMIFS(Table2[[#All],[Overall Place]],Table2[[#All],[Surname / First Name]],$A91)/E91 -> 56 | H91: =SUMIFS(Table2[[#All],[Club Points]],Table2[[#All],[Surname / First Name]],'Click here for your run details'!A91,Table2[[#All],[Excluded from Top 15 Run (Y/N)]],"N") -> 0 | I91: =COUNTIFS(Table2[[#All],[Surname / First Name]],'Click here for your run details'!A91,Table2[[#All],[Excluded from Top 15 Run (Y/N)]],"N") -> 0 | J91: 0
A92: De Jong Jaap | B92: 17 | E92: 17 | F92: Member | G92: =SUMIFS(Table2[[#All],[Overall Place]],Table2[[#All],[Surname / First Name]],$A92)/E92 -> 74.76470588 | H92: =SUMIFS(Table2[[#All],[Club Points]],Table2[[#All],[Surname / First Name]],'Click here for your run details'!A92,Table2[[#All],[Excluded from Top 15 Run (Y/N)]],"N") -> 1453 | I92: =COUNTIFS(Table2[[#All],[Surname / First Name]],'Click here for your run details'!A92,Table2[[#All],[Excluded from Top 15 Run (Y/N)]],"N") -> 15 | J92: 96.86666667
A93: Desailly Nicole | B93: 16 | E93: 16 | F93: Member | G93: =SUMIFS(Table2[[#All],[Overall Place]],Table2[[#All],[Surname / First Name]],$A93)/E93 -> 40.4375 | H93: =SUMIFS(Table2[[#All],[Club Points]],Table2[[#All],[Surname / First Name]],'Click here for your run details'!A93,Table2[[#All],[Excluded from Top 15 Run (Y/N)]],"N") -> 1812 | I93: =COUNTIFS(Table2[[#All],[Surname / First Name]],'Click here for your run details'!A93,Table2[[#All],[Excluded from Top 15 Run (Y/N)]],"N") -> 15 | J93: 120.8
A94: Di Giacomo Simon | B94: 12 | C94: 1 | E94: 13 | F94: Member | G94: =SUMIFS(Table2[[#All],[Overall Place]],Table2[[#All],[Surname / First Name]],$A94)/E94 -> 8.153846154 | H94: =SUMIFS(Table2[[#All],[Club Points]],Table2[[#All],[Surname / First Name]],'Click here for your run details'!A94,Table2[[#All],[Excluded from Top 15 Run (Y/N)]],"N") -> 1739 | I94: =COUNTIFS(Table2[[#All],[Surname / First Name]],'Click here for your run details'!A94,Table2[[#All],[Excluded from Top 15 Run (Y/N)]],"N") -> 12 | J94: 144.9166667
A95: Dicketts Kelly | B95: 5 | E95: 5 | F95: Member | G95: =SUMIFS(Table2[[#All],[Overall Place]],Table2[[#All],[Surname / First Name]],$A95)/E95 -> 62.8 | H95: =SUMIFS(Table2[[#All],[Club Points]],Table2[[#All],[Surname / First Name]],'Click here for your run details'!A95,Table2[[#All],[Excluded from Top 15 Run (Y/N)]],"N") -> 504 | I95: =COUNTIFS(Table2[[#All],[Surname / First Name]],'Click here for your run details'!A95,Table2[[#All],[Excluded from Top 15 Run (Y/N)]],"N") -> 5 | J95: 100.8
A96: Doherty Bill | B96: 24 | E96: 24 | F96: Member | G96: =SUMIFS(Table2[[#All],[Overall Place]],Table2[[#All],[Surname / First Name]],$A96)/E96 -> 23.29166667 | H96: =SUMIFS(Table2[[#All],[Club Points]],Table2[[#All],[Surname / First Name]],'Click here for your run details'!A96,Table2[[#All],[Excluded from Top 15 Run (Y/N)]],"N") -> 2032 | I96: =COUNTIFS(Table2[[#All],[Surname / First Name]],'Click here for your run details'!A96,Table2[[#All],[Excluded from Top 15 Run (Y/N)]],"N") -> 15 | J96: 135.4666667
A97: Doherty Margot | B97: 5 | E97: 5 | F97: Member | G97: =SUMIFS(Table2[[#All],[Overall Place]],Table2[[#All],[Surname / First Name]],$A97)/E97 -> 54.8 | H97: =SUMIFS(Table2[[#All],[Club Points]],Table2[[#All],[Surname / First Name]],'Click here for your run details'!A97,Table2[[#All],[Excluded from Top 15 Run (Y/N)]],"N") -> 527 | I97: =COUNTIFS(Table2[[#All],[Surname / First Name]],'Click here for your run details'!A97,Table2[[#All],[Excluded from Top 15 Run (Y/N)]],"N") -> 5 | J97: 105.4
A98: Doherty Rosie | B98: 11 | E98: 11 | F98: Member | G98: =SUMIFS(Table2[[#All],[Overall Place]],Table2[[#All],[Surname / First Name]],$A98)/E98 -> 66.81818182 | H98: =SUMIFS(Table2[[#All],[Club Points]],Table2[[#All],[Surname / First Name]],'Click here for your run details'!A98,Table2[[#All],[Excluded from Top 15 Run (Y/N)]],"N") -> 1109 | I98: =COUNTIFS(Table2[[#All],[Surname / First Name]],'Click here for your run details'!A98,Table2[[#All],[Excluded from Top 15 Run (Y/N)]],"N") -> 11 | J98: 100.8181818
A99: Doherty Susan | B99: 24 | E99: 24 | F99: Member | G99: =SUMIFS(Table2[[#All],[Overall Place]],Table2[[#All],[Surname / First Name]],$A99)/E99 -> 66.83333333 | H99: =SUMIFS(Table2[[#All],[Club Points]],Table2[[#All],[Surname / First Name]],'Click here for your run details'!A99,Table2[[#All],[Excluded from Top 15 Run (Y/N)]],"N") -> 1634 | I99: =COUNTIFS(Table2[[#All],[Surname / First Name]],'Click here for your run details'!A99,Table2[[#All],[Excluded from Top 15 Run (Y/N)]],"N") -> 15 | J99: 108.9333333
A100: Dohnaler Janet | D100: 1 | E100: 1 | F100: Non-Member | G100: =SUMIFS(Table2[[#All],[Overall Place]],Table2[[#All],[Surname / First Name]],$A100)/E100 -> 84 | H100: =SUMIFS(Table2[[#All],[Club Points]],Table2[[#All],[Surname / First Name]],'Click here for your run details'!A100,Table2[[#All],[Excluded from Top 15 Run (Y/N)]],"N") -> 0 | I100: =COUNTIFS(Table2[[#All],[Surname / First Name]],'Click here for your run details'!A100,Table2[[#All],[Excluded from Top 15 Run (Y/N)]],"N") -> 0 | J100: 0
A101: Donoghue Mary | B101: 21 | E101: 21 | F101: Member | G101: =SUMIFS(Table2[[#All],[Overall Place]],Table2[[#All],[Surname / First Name]],$A101)/E101 -> 66.19047619 | H101: =SUMIFS(Table2[[#All],[Club Points]],Table2[[#All],[Surname / First Name]],'Click here for your run details'!A101,Table2[[#All],[Excluded from Top 15 Run (Y/N)]],"N") -> 1603 | I101: =COUNTIFS(Table2[[#All],[Surname / First Name]],'Click here for your run details'!A101,Table2[[#All],[Excluded from Top 15 Run (Y/N)]],"N") -> 15 | J101: 106.8666667
A102: Donoghue Michael | B102: 25 | E102: 25 | F102: Member | G102: =SUMIFS(Table2[[#All],[Overall Place]],Table2[[#All],[Surname / First Name]],$A102)/E102 -> 40.24 | H102: =SUMIFS(Table2[[#All],[Club Points]],Table2[[#All],[Surname / First Name]],'Click here for your run details'!A102,Table2[[#All],[Excluded from Top 15 Run (Y/N)]],"N") -> 1859 | I102: =COUNTIFS(Table2[[#All],[Surname / First Name]],'Click here for your run details'!A102,Table2[[#All],[Excluded from Top 15 Run (Y/N)]],"N") -> 15 | J102: 123.9333333
A103: Dowel Lee | B103: 3 | E103: 3 | F103: Member | G103: =SUMIFS(Table2[[#All],[Overall Place]],Table2[[#All],[Surname / First Name]],$A103)/E103 -> 75.33333333 | H103: =SUMIFS(Table2[[#All],[Club Points]],Table2[[#All],[Surname / First Name]],'Click here for your run details'!A103,Table2[[#All],[Excluded from Top 15 Run (Y/N)]],"N") -> 272 | I103: =COUNTIFS(Table2[[#All],[Surname / First Name]],'Click here for your run details'!A103,Table2[[#All],[Excluded from Top 15 Run (Y/N)]],"N") -> 3 | J103: 90.66666667
A104: Dowel Mark | B104: 3 | E104: 3 | F104: Member | G104: =SUMIFS(Table2[[#All],[Overall Place]],Table2[[#All],[Surname / First Name]],$A104)/E104 -> 56 | H104: =SUMIFS(Table2[[#All],[Club Points]],Table2[[#All],[Surname / First Name]],'Click here for your run details'!A104,Table2[[#All],[Excluded from Top 15 Run (Y/N)]],"N") -> 314 | I104: =COUNTIFS(Table2[[#All],[Surname / First Name]],'Click here for your run details'!A104,Table2[[#All],[Excluded from Top 15 Run (Y/N)]],"N") -> 3 | J104: 104.6666667
A105: Dowling Bradley | B105: 1 | E105: 1 | F105: Member | G105: =SUMIFS(Table2[[#All],[Overall Place]],Table2[[#All],[Surname / First Name]],$A105)/E105 -> 31 | H105: =SUMIFS(Table2[[#All],[Club Points]],Table2[[#All],[Surname / First Name]],'Click here for your run details'!A105,Table2[[#All],[Excluded from Top 15 Run (Y/N)]],"N") -> 125 | I105: =COUNTIFS(Table2[[#All],[Surname / First Name]],'Click here for your run details'!A105,Table2[[#All],[Excluded from Top 15 Run (Y/N)]],"N") -> 1 | J105: 125
A106: dowling donna | B106: 1 | E106: 1 | F106: Member | G106: =SUMIFS(Table2[[#All],[Overall Place]],Table2[[#All],[Surname / First Name]],$A106)/E106 -> 62 | H106: =SUMIFS(Table2[[#All],[Club Points]],Table2[[#All],[Surname / First Name]],'Click here for your run details'!A106,Table2[[#All],[Excluded from Top 15 Run (Y/N)]],"N") -> 131 | I106: =COUNTIFS(Table2[[#All],[Surname / First Name]],'Click here for your run details'!A106,Table2[[#All],[Excluded from Top 15 Run (Y/N)]],"N") -> 1 | J106: 131
A107: Doyle Rachel | B107: 7 | E107: 7 | F107: Member | G107: =SUMIFS(Table2[[#All],[Overall Place]],Table2[[#All],[Surname / First Name]],$A107)/E107 -> 59.14285714 | H107: =SUMIFS(Table2[[#All],[Club Points]],Table2[[#All],[Surname / First Name]],'Click here for your run details'!A107,Table2[[#All],[Excluded from Top 15 Run (Y/N)]],"N") -> 718 | I107: =COUNTIFS(Table2[[#All],[Surname / First Name]],'Click here for your run details'!A107,Table2[[#All],[Excluded from Top 15 Run (Y/N)]],"N") -> 7 | J107: 102.5714286
A108: Drummond Karin | D108: 1 | E108: 1 | F108: Non-Member | G108: =SUMIFS(Table2[[#All],[Overall Place]],Table2[[#All],[Surname / First Name]],$A108)/E108 -> 23 | H108: =SUMIFS(Table2[[#All],[Club Points]],Table2[[#All],[Surname / First Name]],'Click here for your run details'!A108,Table2[[#All],[Excluded from Top 15 Run (Y/N)]],"N") -> 0 | I108: =COUNTIFS(Table2[[#All],[Surname / First Name]],'Click here for your run details'!A108,Table2[[#All],[Excluded from Top 15 Run (Y/N)]],"N") -> 0 | J108: 0
A109: Dunstan James | D109: 1 | E109: 1 | F109: Non-Member | G109: =SUMIFS(Table2[[#All],[Overall Place]],Table2[[#All],[Surname / First Name]],$A109)/E109 -> 25 | H109: =SUMIFS(Table2[[#All],[Club Points]],Table2[[#All],[Surname / First Name]],'Click here for your run details'!A109,Table2[[#All],[Excluded from Top 15 Run (Y/N)]],"N") -> 0 | I109: =COUNTIFS(Table2[[#All],[Surname / First Name]],'Click here for your run details'!A109,Table2[[#All],[Excluded from Top 15 Run (Y/N)]],"N") -> 0 | J109: 0
A110: Dunstan Jamie | D110: 1 | E110: 1 | F110: Non-Member | G110: =SUMIFS(Table2[[#All],[Overall Place]],Table2[[#All],[Surname / First Name]],$A110)/E110 -> 23 | H110: =SUMIFS(Table2[[#All],[Club Points]],Table2[[#All],[Surname / First Name]],'Click here for your run details'!A110,Table2[[#All],[Excluded from Top 15 Run (Y/N)]],"N") -> 0 | I110: =COUNTIFS(Table2[[#All],[Surname / First Name]],'Click here for your run details'!A110,Table2[[#All],[Excluded from Top 15 Run (Y/N)]],"N") -> 0 | J110: 0
A111: Dunsten James | D111: 2 | E111: 2 | F111: Non-Member | G111: =SUMIFS(Table2[[#All],[Overall Place]],Table2[[#All],[Surname / First Name]],$A111)/E111 -> 13.5 | H111: =SUMIFS(Table2[[#All],[Club Points]],Table2[[#All],[Surname / First Name]],'Click here for your run details'!A111,Table2[[#All],[Excluded from Top 15 Run (Y/N)]],"N") -> 0 | I111: =COUNTIFS(Table2[[#All],[Surname / First Name]],'Click here for your run details'!A111,Table2[[#All],[Excluded from Top 15 Run (Y/N)]],"N") -> 0 | J111: 0
A112: Ellershaw Robert | B112: 14 | E112: 14 | F112: Member | G112: =SUMIFS(Table2[[#All],[Overall Place]],Table2[[#All],[Surname / First Name]],$A112)/E112 -> 34.07142857 | H112: =SUMIFS(Table2[[#All],[Club Points]],Table2[[#All],[Surname / First Name]],'Click here for your run details'!A112,Table2[[#All],[Excluded from Top 15 Run (Y/N)]],"N") -> 1724 | I112: =COUNTIFS(Table2[[#All],[Surname / First Name]],'Click here for your run details'!A112,Table2[[#All],[Excluded from Top 15 Run (Y/N)]],"N") -> 14 | J112: 123.1428571
A113: Ellett Greg | D113: 1 | E113: 1 | F113: Non-Member | G113: =SUMIFS(Table2[[#All],[Overall Place]],Table2[[#All],[Surname / First Name]],$A113)/E113 -> 4 | H113: =SUMIFS(Table2[[#All],[Club Points]],Table2[[#All],[Surname / First Name]],'Click here for your run details'!A113,Table2[[#All],[Excluded from Top 15 Run (Y/N)]],"N") -> 0 | I113: =COUNTIFS(Table2[[#All],[Surname / First Name]],'Click here for your run details'!A113,Table2[[#All],[Excluded from Top 15 Run (Y/N)]],"N") -> 0 | J113: 0
A114: Elliott Clinton | D114: 1 | E114: 1 | F114: Non-Member | G114: =SUMIFS(Table2[[#All],[Overall Place]],Table2[[#All],[Surname / First Name]],$A114)/E114 -> 17 | H114: =SUMIFS(Table2[[#All],[Club Points]],Table2[[#All],[Surname / First Name]],'Click here for your run details'!A114,Table2[[#All],[Excluded from Top 15 Run (Y/N)]],"N") -> 0 | I114: =COUNTIFS(Table2[[#All],[Surname / First Name]],'Click here for your run details'!A114,Table2[[#All],[Excluded from Top 15 Run (Y/N)]],"N") -> 0 | J114: 0
A115: Eriksen Dale | B115: 11 | E115: 11 | F115: Member | G115: =SUMIFS(Table2[[#All],[Overall Place]],Table2[[#All],[Surname / First Name]],$A115)/E115 -> 50.72727273 | H115: =SUMIFS(Table2[[#All],[Club Points]],Table2[[#All],[Surname / First Name]],'Click here for your run details'!A115,Table2[[#All],[Excluded from Top 15 Run (Y/N)]],"N") -> 1225 | I115: =COUNTIFS(Table2[[#All],[Surname / First Name]],'Click here for your run details'!A115,Table2[[#All],[Excluded from Top 15 Run (Y/N)]],"N") -> 11 | J115: 111.3636364
A116: Eusson John | D116: 1 | E116: 1 | F116: Non-Member | G116: =SUMIFS(Table2[[#All],[Overall Place]],Table2[[#All],[Surname / First Name]],$A116)/E116 -> 26 | H116: =SUMIFS(Table2[[#All],[Club Points]],Table2[[#All],[Surname / First Name]],'Click here for your run details'!A116,Table2[[#All],[Excluded from Top 15 Run (Y/N)]],"N") -> 0 | I116: =COUNTIFS(Table2[[#All],[Surname / First Name]],'Click here for your run details'!A116,Table2[[#All],[Excluded from Top 15 Run (Y/N)]],"N") -> 0 | J116: 0
A117: Evans Derrick | B117: 19 | E117: 19 | F117: Member | G117: =SUMIFS(Table2[[#All],[Overall Place]],Table2[[#All],[Surname / First Name]],$A117)/E117 -> 19.73684211 | H117: =SUMIFS(Table2[[#All],[Club Points]],Table2[[#All],[Surname / First Name]],'Click here for your run details'!A117,Table2[[#All],[Excluded from Top 15 Run (Y/N)]],"N") -> 2048 | I117: =COUNTIFS(Table2[[#All],[Surname / First Name]],'Click here for your run details'!A117,Table2[[#All],[Excluded from Top 15 Run (Y/N)]],"N") -> 15 | J117: 136.5333333
A118: Evas Sorene | D118: 1 | E118: 1 | F118: Non-Member | G118: =SUMIFS(Table2[[#All],[Overall Place]],Table2[[#All],[Surname / First Name]],$A118)/E118 -> 88 | H118: =SUMIFS(Table2[[#All],[Club Points]],Table2[[#All],[Surname / First Name]],'Click here for your run details'!A118,Table2[[#All],[Excluded from Top 15 Run (Y/N)]],"N") -> 0 | I118: =COUNTIFS(Table2[[#All],[Surname / First Name]],'Click here for your run details'!A118,Table2[[#All],[Excluded from Top 15 Run (Y/N)]],"N") -> 0 | J118: 0
A119: Fanning Jenny | D119: 1 | E119: 1 | F119: Non-Member | G119: =SUMIFS(Table2[[#All],[Overall Place]],Table2[[#All],[Surname / First Name]],$A119)/E119 -> 82 | H119: =SUMIFS(Table2[[#All],[Club Points]],Table2[[#All],[Surname / First Name]],'Click here for your run details'!A119,Table2[[#All],[Excluded from Top 15 Run (Y/N)]],"N") -> 0 | I119: =COUNTIFS(Table2[[#All],[Surname / First Name]],'Click here for your run details'!A119,Table2[[#All],[Excluded from Top 15 Run (Y/N)]],"N") -> 0 | J119: 0
A120: Fanning Terence | B120: 8 | C120: 2 | E120: 10 | F120: Member | G120: =SUMIFS(Table2[[#All],[Overall Place]],Table2[[#All],[Surname / First Name]],$A120)/E120 -> 46.4 | H120: =SUMIFS(Table2[[#All],[Club Points]],Table2[[#All],[Surname / First Name]],'Click here for your run details'!A120,Table2[[#All],[Excluded from Top 15 Run (Y/N)]],"N") -> 933 | I120: =COUNTIFS(Table2[[#All],[Surname / First Name]],'Click here for your run details'!A120,Table2[[#All],[Excluded from Top 15 Run (Y/N)]],"N") -> 8 | J120: 116.625
A121: Farmer Matthew | D121: 1 | E121: 1 | F121: Non-Member | G121: =SUMIFS(Table2[[#All],[Overall Place]],Table2[[#All],[Surname / First Name]],$A121)/E121 -> 13 | H121: =SUMIFS(Table2[[#All],[Club Points]],Table2[[#All],[Surname / First Name]],'Click here for your run details'!A121,Table2[[#All],[Excluded from Top 15 Run (Y/N)]],"N") -> 0 | I121: =COUNTIFS(Table2[[#All],[Surname / First Name]],'Click here for your run details'!A121,Table2[[#All],[Excluded from Top 15 Run (Y/N)]],"N") -> 0 | J121: 0
A122: Ferguson Catherine | D122: 1 | E122: 1 | F122: Non-Member | G122: =SUMIFS(Table2[[#All],[Overall Place]],Table2[[#All],[Surname / First Name]],$A122)/E122 -> 68 | H122: =SUMIFS(Table2[[#All],[Club Points]],Table2[[#All],[Surname / First Name]],'Click here for your run details'!A122,Table2[[#All],[Excluded from Top 15 Run (Y/N)]],"N") -> 0 | I122: =COUNTIFS(Table2[[#All],[Surname / First Name]],'Click here for your run details'!A122,Table2[[#All],[Excluded from Top 15 Run (Y/N)]],"N") -> 0 | J122: 0
A123: Fitzsimmons Michael | B123: 21 | E123: 21 | F123: Member | G123: =SUMIFS(Table2[[#All],[Overall Place]],Table2[[#All],[Surname / First Name]],$A123)/E123 -> 13.9047619 | H123: =SUMIFS(Table2[[#All],[Club Points]],Table2[[#All],[Surname / First Name]],'Click here for your run details'!A123,Table2[[#All],[Excluded from Top 15 Run (Y/N)]],"N") -> 2123 | I123: =COUNTIFS(Table2[[#All],[Surname / First Name]],'Click here for your run details'!A123,Table2[[#All],[Excluded from Top 15 Run (Y/N)]],"N") -> 15 | J123: 141.5333333
A124: Flores Monique | D124: 7 | E124: 7 | F124: Non-Member | G124: =SUMIFS(Table2[[#All],[Overall Place]],Table2[[#All],[Surname / First Name]],$A124)/E124 -> 16.42857143 | H124: =SUMIFS(Table2[[#All],[Club Points]],Table2[[#All],[Surname / First Name]],'Click here for your run details'!A124,Table2[[#All],[Excluded from Top 15 Run (Y/N)]],"N") -> 0 | I124: =COUNTIFS(Table2[[#All],[Surname / First Name]],'Click here for your run details'!A124,Table2[[#All],[Excluded from Top 15 Run (Y/N)]],"N") -> 0 | J124: 0
A125: Flynn-Pittar Dee | B125: 13 | E125: 13 | F125: Member | G125: =SUMIFS(Table2[[#All],[Overall Place]],Table2[[#All],[Surname / First Name]],$A125)/E125 -> 30.53846154 | H125: =SUMIFS(Table2[[#All],[Club Points]],Table2[[#All],[Surname / First Name]],'Click here for your run details'!A125,Table2[[#All],[Excluded from Top 15 Run (Y/N)]],"N") -> 1638 | I125: =COUNTIFS(Table2[[#All],[Surname / First Name]],'Click here for your run details'!A125,Table2[[#All],[Excluded from Top 15 Run (Y/N)]],"N") -> 13 | J125: 126
A126: Flynn-Pittar Isis | B126: 15 | C126: 6 | E126: 21 | F126: Member | G126: =SUMIFS(Table2[[#All],[Overall Place]],Table2[[#All],[Surname / First Name]],$A126)/E126 -> 25.95238095 | H126: =SUMIFS(Table2[[#All],[Club Points]],Table2[[#All],[Surname / First Name]],'Click here for your run details'!A126,Table2[[#All],[Excluded from Top 15 Run (Y/N)]],"N") -> 1979 | I126: =COUNTIFS(Table2[[#All],[Surname / First Name]],'Click here for your run details'!A126,Table2[[#All],[Excluded from Top 15 Run (Y/N)]],"N") -> 15 | J126: 131.9333333
A127: Fox Adam | D127: 1 | E127: 1 | F127: Non-Member | G127: =SUMIFS(Table2[[#All],[Overall Place]],Table2[[#All],[Surname / First Name]],$A127)/E127 -> 16 | H127: =SUMIFS(Table2[[#All],[Club Points]],Table2[[#All],[Surname / First Name]],'Click here for your run details'!A127,Table2[[#All],[Excluded from Top 15 Run (Y/N)]],"N") -> 0 | I127: =COUNTIFS(Table2[[#All],[Surname / First Name]],'Click here for your run details'!A127,Table2[[#All],[Excluded from Top 15 Run (Y/N)]],"N") -> 0 | J127: 0
A128: Francis Alley | D128: 1 | E128: 1 | F128: Non-Member | G128: =SUMIFS(Table2[[#All],[Overall Place]],Table2[[#All],[Surname / First Name]],$A128)/E128 -> 55 | H128: =SUMIFS(Table2[[#All],[Club Points]],Table2[[#All],[Surname / First Name]],'Click here for your run details'!A128,Table2[[#All],[Excluded from Top 15 Run (Y/N)]],"N") -> 0 | I128: =COUNTIFS(Table2[[#All],[Surname / First Name]],'Click here for your run details'!A128,Table2[[#All],[Excluded from Top 15 Run (Y/N)]],"N") -> 0 | J128: 0
A129: Frazer Ian | B129: 17 | E129: 17 | F129: Member | G129: =SUMIFS(Table2[[#All],[Overall Place]],Table2[[#All],[Surname / First Name]],$A129)/E129 -> 32.35294118 | H129: =SUMIFS(Table2[[#All],[Club Points]],Table2[[#All],[Surname / First Name]],'Click here for your run details'!A129,Table2[[#All],[Excluded from Top 15 Run (Y/N)]],"N") -> 1885 | I129: =COUNTIFS(Table2[[#All],[Surname / First Name]],'Click here for your run details'!A129,Table2[[#All],[Excluded from Top 15 Run (Y/N)]],"N") -> 15 | J129: 125.6666667
A130: Freislich Natalie | B130: 2 | E130: 2 | F130: Member | G130: =SUMIFS(Table2[[#All],[Overall Place]],Table2[[#All],[Surname / First Name]],$A130)/E130 -> 79.5 | H130: =SUMIFS(Table2[[#All],[Club Points]],Table2[[#All],[Surname / First Name]],'Click here for your run details'!A130,Table2[[#All],[Excluded from Top 15 Run (Y/N)]],"N") -> 180 | I130: =COUNTIFS(Table2[[#All],[Surname / First Name]],'Click here for your run details'!A130,Table2[[#All],[Excluded from Top 15 Run (Y/N)]],"N") -> 2 | J130: 90
A131: Frossling Annika | B131: 3 | E131: 3 | F131: Member | G131: =SUMIFS(Table2[[#All],[Overall Place]],Table2[[#All],[Surname / First Name]],$A131)/E131 -> 56.66666667 | H131: =SUMIFS(Table2[[#All],[Club Points]],Table2[[#All],[Surname / First Name]],'Click here for your run details'!A131,Table2[[#All],[Excluded from Top 15 Run (Y/N)]],"N") -> 351 | I131: =COUNTIFS(Table2[[#All],[Surname / First Name]],'Click here for your run details'!A131,Table2[[#All],[Excluded from Top 15 Run (Y/N)]],"N") -> 3 | J131: 117
A132: Garnett Adrian | B132: 13 | E132: 13 | F132: Member | G132: =SUMIFS(Table2[[#All],[Overall Place]],Table2[[#All],[Surname / First Name]],$A132)/E132 -> 5.538461538 | H132: =SUMIFS(Table2[[#All],[Club Points]],Table2[[#All],[Surname / First Name]],'Click here for your run details'!A132,Table2[[#All],[Excluded from Top 15 Run (Y/N)]],"N") -> 1905 | I132: =COUNTIFS(Table2[[#All],[Surname / First Name]],'Click here for your run details'!A132,Table2[[#All],[Excluded from Top 15 Run (Y/N)]],"N") -> 13 | J132: 146.5384615
A133: Garvie Diane | B133: 9 | E133: 9 | F133: Member | G133: =SUMIFS(Table2[[#All],[Overall Place]],Table2[[#All],[Surname / First Name]],$A133)/E133 -> 65.11111111 | H133: =SUMIFS(Table2[[#All],[Club Points]],Table2[[#All],[Surname / First Name]],'Click here for your run details'!A133,Table2[[#All],[Excluded from Top 15 Run (Y/N)]],"N") -> 891 | I133: =COUNTIFS(Table2[[#All],[Surname / First Name]],'Click here for your run details'!A133,Table2[[#All],[Excluded from Top 15 Run (Y/N)]],"N") -> 9 | J133: 99
A134: Gifford Kelly | B134: 11 | E134: 11 | F134: Member | G134: =SUMIFS(Table2[[#All],[Overall Place]],Table2[[#All],[Surname / First Name]],$A134)/E134 -> 46.81818182 | H134: =SUMIFS(Table2[[#All],[Club Points]],Table2[[#All],[Surname / First Name]],'Click here for your run details'!A134,Table2[[#All],[Excluded from Top 15 Run (Y/N)]],"N") -> 1260 | I134: =COUNTIFS(Table2[[#All],[Surname / First Name]],'Click here for your run details'!A134,Table2[[#All],[Excluded from Top 15 Run (Y/N)]],"N") -> 11 | J134: 114.5454545
A135: Gilboy Arthur | D135: 3 | E135: 3 | F135: Non-Member | G135: =SUMIFS(Table2[[#All],[Overall Place]],Table2[[#All],[Surname / First Name]],$A135)/E135 -> 63.66666667 | H135: =SUMIFS(Table2[[#All],[Club Points]],Table2[[#All],[Surname / First Name]],'Click here for your run details'!A135,Table2[[#All],[Excluded from Top 15 Run (Y/N)]],"N") -> 0 | I135: =COUNTIFS(Table2[[#All],[Surname / First Name]],'Click here for your run details'!A135,Table2[[#All],[Excluded from Top 15 Run (Y/N)]],"N") -> 0 | J135: 0
A136: Gillham Angela | B136: 1 | E136: 1 | F136: Member | G136: =SUMIFS(Table2[[#All],[Overall Place]],Table2[[#All],[Surname / First Name]],$A136)/E136 -> 80 | H136: =SUMIFS(Table2[[#All],[Club Points]],Table2[[#All],[Surname / First Name]],'Click here for your run details'!A136,Table2[[#All],[Excluded from Top 15 Run (Y/N)]],"N") -> 79 | I136: =COUNTIFS(Table2[[#All],[Surname / First Name]],'Click here for your run details'!A136,Table2[[#All],[Excluded from Top 15 Run (Y/N)]],"N") -> 1 | J136: 79
A137: Gillham Claudia | B137: 5 | E137: 5 | F137: =IF(AND(SUM(B137:C137)>0,SUM(B137:C137)<99),"Member","Non-Member") -> Member | G137: =SUMIFS(Table2[[#All],[Overall Place]],Table2[[#All],[Surname / First Name]],$A137)/E137 -> 99 | H137: =SUMIFS(Table2[[#All],[Club Points]],Table2[[#All],[Surname / First Name]],'Click here for your run details'!A137,Table2[[#All],[Excluded from Top 15 Run (Y/N)]],"N") -> 357 | I137: =COUNTIFS(Table2[[#All],[Surname / First Name]],'Click here for your run details'!A137,Table2[[#All],[Excluded from Top 15 Run (Y/N)]],"N") -> 5 | J137: 71.4
A138: Godier Jason | D138: 2 | E138: 2 | F138: Non-Member | G138: =SUMIFS(Table2[[#All],[Overall Place]],Table2[[#All],[Surname / First Name]],$A138)/E138 -> 25 | H138: =SUMIFS(Table2[[#All],[Club Points]],Table2[[#All],[Surname / First Name]],'Click here for your run details'!A138,Table2[[#All],[Excluded from Top 15 Run (Y/N)]],"N") -> 0 | I138: =COUNTIFS(Table2[[#All],[Surname / First Name]],'Click here for your run details'!A138,Table2[[#All],[Excluded from Top 15 Run (Y/N)]],"N") -> 0 | J138: 0
A139: Goding Garry | D139: 1 | E139: 1 | F139: Non-Member | G139: =SUMIFS(Table2[[#All],[Overall Place]],Table2[[#All],[Surname / First Name]],$A139)/E139 -> 30 | H139: =SUMIFS(Table2[[#All],[Club Points]],Table2[[#All],[Surname / First Name]],'Click here for your run details'!A139,Table2[[#All],[Excluded from Top 15 Run (Y/N)]],"N") -> 0 | I139: =COUNTIFS(Table2[[#All],[Surname / First Name]],'Click here for your run details'!A139,Table2[[#All],[Excluded from Top 15 Run (Y/N)]],"N") -> 0 | J139: 0
A140: Gordon Tony | B140: 6 | E140: 6 | F140: Member | G140: =SUMIFS(Table2[[#All],[Overall Place]],Table2[[#All],[Surname / First Name]],$A140)/E140 -> 16.16666667 | H140: =SUMIFS(Table2[[#All],[Club Points]],Table2[[#All],[Surname / First Name]],'Click here for your run details'!A140,Table2[[#All],[Excluded from Top 15 Run (Y/N)]],"N") -> 821 | I140: =COUNTIFS(Table2[[#All],[Surname / First Name]],'Click here for your run details'!A140,Table2[[#All],[Excluded from Top 15 Run (Y/N)]],"N") -> 6 | J140: 136.8333333
A141: Gough Justin | D141: 1 | E141: 1 | F141: Non-Member | G141: =SUMIFS(Table2[[#All],[Overall Place]],Table2[[#All],[Surname / First Name]],$A141)/E141 -> 37 | H141: =SUMIFS(Table2[[#All],[Club Points]],Table2[[#All],[Surname / First Name]],'Click here for your run details'!A141,Table2[[#All],[Excluded from Top 15 Run (Y/N)]],"N") -> 0 | I141: =COUNTIFS(Table2[[#All],[Surname / First Name]],'Click here for your run details'!A141,Table2[[#All],[Excluded from Top 15 Run (Y/N)]],"N") -> 0 | J141: 0
A142: Gower Adam | D142: 1 | E142: 1 | F142: Non-Member | G142: =SUMIFS(Table2[[#All],[Overall Place]],Table2[[#All],[Surname / First Name]],$A142)/E142 -> 24 | H142: =SUMIFS(Table2[[#All],[Club Points]],Table2[[#All],[Surname / First Name]],'Click here for your run details'!A142,Table2[[#All],[Excluded from Top 15 Run (Y/N)]],"N") -> 0 | I142: =COUNTIFS(Table2[[#All],[Surname / First Name]],'Click here for your run details'!A142,Table2[[#All],[Excluded from Top 15 Run (Y/N)]],"N") -> 0 | J142: 0
A143: Groat Veronica | B143: 3 | E143: 3 | F143: Member | G143: =SUMIFS(Table2[[#All],[Overall Place]],Table2[[#All],[Surname / First Name]],$A143)/E143 -> 49.33333333 | H143: =SUMIFS(Table2[[#All],[Club Points]],Table2[[#All],[Surname / First Name]],'Click here for your run details'!A143,Table2[[#All],[Excluded from Top 15 Run (Y/N)]],"N") -> 336 | I143: =COUNTIFS(Table2[[#All],[Surname / First Name]],'Click here for your run details'!A143,Table2[[#All],[Excluded from Top 15 Run (Y/N)]],"N") -> 3 | J143: 112
A144: Groose John | D144: 1 | E144: 1 | F144: Non-Member | G144: =SUMIFS(Table2[[#All],[Overall Place]],Table2[[#All],[Surname / First Name]],$A144)/E144 -> 67 | H144: =SUMIFS(Table2[[#All],[Club Points]],Table2[[#All],[Surname / First Name]],'Click here for your run details'!A144,Table2[[#All],[Excluded from Top 15 Run (Y/N)]],"N") -> 0 | I144: =COUNTIFS(Table2[[#All],[Surname / First Name]],'Click here for your run details'!A144,Table2[[#All],[Excluded from Top 15 Run (Y/N)]],"N") -> 0 | J144: 0
A145: Grubba Tracey | D145: 1 | E145: 1 | F145: Non-Member | G145: =SUMIFS(Table2[[#All],[Overall Place]],Table2[[#All],[Surname / First Name]],$A145)/E145 -> 80 | H145: =SUMIFS(Table2[[#All],[Club Points]],Table2[[#All],[Surname / First Name]],'Click here for your run details'!A145,Table2[[#All],[Excluded from Top 15 Run (Y/N)]],"N") -> 0 | I145: =COUNTIFS(Table2[[#All],[Surname / First Name]],'Click here for your run details'!A145,Table2[[#All],[Excluded from Top 15 Run (Y/N)]],"N") -> 0 | J145: 0
A146: Gustavson Russell | D146: 6 | E146: 6 | F146: Non-Member | G146: =SUMIFS(Table2[[#All],[Overall Place]],Table2[[#All],[Surname / First Name]],$A146)/E146 -> 48.5 | H146: =SUMIFS(Table2[[#All],[Club Points]],Table2[[#All],[Surname / First Name]],'Click here for your run details'!A146,Table2[[#All],[Excluded from Top 15 Run (Y/N)]],"N") -> 0 | I146: =COUNTIFS(Table2[[#All],[Surname / First Name]],'Click here for your run details'!A146,Table2[[#All],[Excluded from Top 15 Run (Y/N)]],"N") -> 0 | J146: 0
A147: Guy William | B147: 14 | E147: 14 | F147: Member | G147: =SUMIFS(Table2[[#All],[Overall Place]],Table2[[#All],[Surname / First Name]],$A147)/E147 -> 23.92857143 | H147: =SUMIFS(Table2[[#All],[Club Points]],Table2[[#All],[Surname / First Name]],'Click here for your run details'!A147,Table2[[#All],[Excluded from Top 15 Run (Y/N)]],"N") -> 1838 | I147: =COUNTIFS(Table2[[#All],[Surname / First Name]],'Click here for your run details'!A147,Table2[[#All],[Excluded from Top 15 Run (Y/N)]],"N") -> 14 | J147: 131.2857143
A148: Hampton Dave | B148: 10 | E148: 10 | F148: Member | G148: =SUMIFS(Table2[[#All],[Overall Place]],Table2[[#All],[Surname / First Name]],$A148)/E148 -> 68.2 | H148: =SUMIFS(Table2[[#All],[Club Points]],Table2[[#All],[Surname / First Name]],'Click here for your run details'!A148,Table2[[#All],[Excluded from Top 15 Run (Y/N)]],"N") -> 997 | I148: =COUNTIFS(Table2[[#All],[Surname / First Name]],'Click here for your run details'!A148,Table2[[#All],[Excluded from Top 15 Run (Y/N)]],"N") -> 10 | J148: 99.7
A149: Hannay Andrew | B149: 10 | E149: 10 | F149: Member | G149: =SUMIFS(Table2[[#All],[Overall Place]],Table2[[#All],[Surname / First Name]],$A149)/E149 -> 58.1 | H149: =SUMIFS(Table2[[#All],[Club Points]],Table2[[#All],[Surname / First Name]],'Click here for your run details'!A149,Table2[[#All],[Excluded from Top 15 Run (Y/N)]],"N") -> 1054 | I149: =COUNTIFS(Table2[[#All],[Surname / First Name]],'Click here for your run details'!A149,Table2[[#All],[Excluded from Top 15 Run (Y/N)]],"N") -> 10 | J149: 105.4
A150: Harding Michael | B150: 20 | E150: 20 | F150: Member | G150: =SUMIFS(Table2[[#All],[Overall Place]],Table2[[#All],[Surname / First Name]],$A150)/E150 -> 2.3 | H150: =SUMIFS(Table2[[#All],[Club Points]],Table2[[#All],[Surname / First Name]],'Click here for your run details'!A150,Table2[[#All],[Excluded from Top 15 Run (Y/N)]],"N") -> 2241 | I150: =COUNTIFS(Table2[[#All],[Surname / First Name]],'Click here for your run details'!A150,Table2[[#All],[Excluded from Top 15 Run (Y/N)]],"N") -> 15 | J150: 149.4
A151: Harris James | D151: 1 | E151: 1 | F151: Non-Member | G151: =SUMIFS(Table2[[#All],[Overall Place]],Table2[[#All],[Surname / First Name]],$A151)/E151 -> 36 | H151: =SUMIFS(Table2[[#All],[Club Points]],Table2[[#All],[Surname / First Name]],'Click here for your run details'!A151,Table2[[#All],[Excluded from Top 15 Run (Y/N)]],"N") -> 0 | I151: =COUNTIFS(Table2[[#All],[Surname / First Name]],'Click here for your run details'!A151,Table2[[#All],[Excluded from Top 15 Run (Y/N)]],"N") -> 0 | J151: 0
A152: Hartwell Ngaire | D152: 1 | E152: 1 | F152: Non-Member | G152: =SUMIFS(Table2[[#All],[Overall Place]],Table2[[#All],[Surname / First Name]],$A152)/E152 -> 74 | H152: =SUMIFS(Table2[[#All],[Club Points]],Table2[[#All],[Surname / First Name]],'Click here for your run details'!A152,Table2[[#All],[Excluded from Top 15 Run (Y/N)]],"N") -> 0 | I152: =COUNTIFS(Table2[[#All],[Surname / First Name]],'Click here for your run details'!A152,Table2[[#All],[Excluded from Top 15 Run (Y/N)]],"N") -> 0 | J152: 0
A153: Hastewell Brad | D153: 1 | E153: 1 | F153: Non-Member | G153: =SUMIFS(Table2[[#All],[Overall Place]],Table2[[#All],[Surname / First Name]],$A153)/E153 -> 31 | H153: =SUMIFS(Table2[[#All],[Club Points]],Table2[[#All],[Surname / First Name]],'Click here for your run details'!A153,Table2[[#All],[Excluded from Top 15 Run (Y/N)]],"N") -> 0 | I153: =COUNTIFS(Table2[[#All],[Surname / First Name]],'Click here for your run details'!A153,Table2[[#All],[Excluded from Top 15 Run (Y/N)]],"N") -> 0 | J153: 0
A154: Hatchard Nicole | D154: 2 | E154: 2 | F154: Non-Member | G154: =SUMIFS(Table2[[#All],[Overall Place]],Table2[[#All],[Surname / First Name]],$A154)/E154 -> 46.5 | H154: =SUMIFS(Table2[[#All],[Club Points]],Table2[[#All],[Surname / First Name]],'Click here for your run details'!A154,Table2[[#All],[Excluded from Top 15 Run (Y/N)]],"N") -> 0 | I154: =COUNTIFS(Table2[[#All],[Surname / First Name]],'Click here for your run details'!A154,Table2[[#All],[Excluded from Top 15 Run (Y/N)]],"N") -> 0 | J154: =IFERROR(H154/I154,0) -> 0
A155: Hawey Loretto | D155: 1 | E155: 1 | F155: Non-Member | G155: =SUMIFS(Table2[[#All],[Overall Place]],Table2[[#All],[Surname / First Name]],$A155)/E155 -> 60 | H155: =SUMIFS(Table2[[#All],[Club Points]],Table2[[#All],[Surname / First Name]],'Click here for your run details'!A155,Table2[[#All],[Excluded from Top 15 Run (Y/N)]],"N") -> 0 | I155: =COUNTIFS(Table2[[#All],[Surname / First Name]],'Click here for your run details'!A155,Table2[[#All],[Excluded from Top 15 Run (Y/N)]],"N") -> 0 | J155: 0
A156: Heames Sam | D156: 7 | E156: 7 | F156: Non-Member | G156: =SUMIFS(Table2[[#All],[Overall Place]],Table2[[#All],[Surname / First Name]],$A156)/E156 -> 5.285714286 | H156: =SUMIFS(Table2[[#All],[Club Points]],Table2[[#All],[Surname / First Name]],'Click here for your run details'!A156,Table2[[#All],[Excluded from Top 15 Run (Y/N)]],"N") -> 0 | I156: =COUNTIFS(Table2[[#All],[Surname / First Name]],'Click here for your run details'!A156,Table2[[#All],[Excluded from Top 15 Run (Y/N)]],"N") -> 0 | J156: 0
A157: Heames# Sam | D157: 1 | E157: 1 | F157: Non-Member | G157: =SUMIFS(Table2[[#All],[Overall Place]],Table2[[#All],[Surname / First Name]],$A157)/E157 -> 6 | H157: =SUMIFS(Table2[[#All],[Club Points]],Table2[[#All],[Surname / First Name]],'Click here for your run details'!A157,Table2[[#All],[Excluded from Top 15 Run (Y/N)]],"N") -> 0 | I157: =COUNTIFS(Table2[[#All],[Surname / First Name]],'Click here for your run details'!A157,Table2[[#All],[Excluded from Top 15 Run (Y/N)]],"N") -> 0 | J157: 0
A158: Hearn Jennifer | B158: 7 | E158: 7 | F158: Member | G158: =SUMIFS(Table2[[#All],[Overall Place]],Table2[[#All],[Surname / First Name]],$A158)/E158 -> 77 | H158: =SUMIFS(Table2[[#All],[Club Points]],Table2[[#All],[Surname / First Name]],'Click here for your run details'!A158,Table2[[#All],[Excluded from Top 15 Run (Y/N)]],"N") -> 635 | I158: =COUNTIFS(Table2[[#All],[Surname / First Name]],'Click here for your run details'!A158,Table2[[#All],[Excluded from Top 15 Run (Y/N)]],"N") -> 7 | J158: 90.71428571
A159: Hedges David | D159: 1 | E159: 1 | F159: Non-Member | G159: =SUMIFS(Table2[[#All],[Overall Place]],Table2[[#All],[Surname / First Name]],$A159)/E159 -> 38 | H159: =SUMIFS(Table2[[#All],[Club Points]],Table2[[#All],[Surname / First Name]],'Click here for your run details'!A159,Table2[[#All],[Excluded from Top 15 Run (Y/N)]],"N") -> 0 | I159: =COUNTIFS(Table2[[#All],[Surname / First Name]],'Click here for your run details'!A159,Table2[[#All],[Excluded from Top 15 Run (Y/N)]],"N") -> 0 | J159: 0
A160: Henderson Daniel | D160: 1 | E160: 1 | F160: Non-Member | G160: =SUMIFS(Table2[[#All],[Overall Place]],Table2[[#All],[Surname / First Name]],$A160)/E160 -> 6 | H160: =SUMIFS(Table2[[#All],[Club Points]],Table2[[#All],[Surname / First Name]],'Click here for your run details'!A160,Table2[[#All],[Excluded from Top 15 Run (Y/N)]],"N") -> 0 | I160: =COUNTIFS(Table2[[#All],[Surname / First Name]],'Click here for your run details'!A160,Table2[[#All],[Excluded from Top 15 Run (Y/N)]],"N") -> 0 | J160: 0
A161: Hiette Casey | D161: 4 | E161: 4 | F161: Non-Member | G161: =SUMIFS(Table2[[#All],[Overall Place]],Table2[[#All],[Surname / First Name]],$A161)/E161 -> 26.25 | H161: =SUMIFS(Table2[[#All],[Club Points]],Table2[[#All],[Surname / First Name]],'Click here for your run details'!A161,Table2[[#All],[Excluded from Top 15 Run (Y/N)]],"N") -> 0 | I161: =COUNTIFS(Table2[[#All],[Surname / First Name]],'Click here for your run details'!A161,Table2[[#All],[Excluded from Top 15 Run (Y/N)]],"N") -> 0 | J161: 0
A162: Hiette Terry | B162: 7 | E162: 7 | F162: Member | G162: =SUMIFS(Table2[[#All],[Overall Place]],Table2[[#All],[Surname / First Name]],$A162)/E162 -> 27.42857143 | H162: =SUMIFS(Table2[[#All],[Club Points]],Table2[[#All],[Surname / First Name]],'Click here for your run details'!A162,Table2[[#All],[Excluded from Top 15 Run (Y/N)]],"N") -> 908 | I162: =COUNTIFS(Table2[[#All],[Surname / First Name]],'Click here for your run details'!A162,Table2[[#All],[Excluded from Top 15 Run (Y/N)]],"N") -> 7 | J162: 129.7142857
A163: Hisuchi Tk | D163: 1 | E163: 1 | F163: Non-Member | G163: =SUMIFS(Table2[[#All],[Overall Place]],Table2[[#All],[Surname / First Name]],$A163)/E163 -> 31 | H163: =SUMIFS(Table2[[#All],[Club Points]],Table2[[#All],[Surname / First Name]],'Click here for your run details'!A163,Table2[[#All],[Excluded from Top 15 Run (Y/N)]],"N") -> 0 | I163: =COUNTIFS(Table2[[#All],[Surname / First Name]],'Click here for your run details'!A163,Table2[[#All],[Excluded from Top 15 Run (Y/N)]],"N") -> 0 | J163: 0
A164: Hobbs Lucas | D164: 1 | E164: 1 | F164: Non-Member | G164: =SUMIFS(Table2[[#All],[Overall Place]],Table2[[#All],[Surname / First Name]],$A164)/E164 -> 46 | H164: =SUMIFS(Table2[[#All],[Club Points]],Table2[[#All],[Surname / First Name]],'Click here for your run details'!A164,Table2[[#All],[Excluded from Top 15 Run (Y/N)]],"N") -> 0 | I164: =COUNTIFS(Table2[[#All],[Surname / First Name]],'Click here for your run details'!A164,Table2[[#All],[Excluded from Top 15 Run (Y/N)]],"N") -> 0 | J164: 0
A165: Hobson Cheryl | B165: 5 | E165: 5 | F165: Member | G165: =SUMIFS(Table2[[#All],[Overall Place]],Table2[[#All],[Surname / First Name]],$A165)/E165 -> 93.4 | H165: =SUMIFS(Table2[[#All],[Club Points]],Table2[[#All],[Surname / First Name]],'Click here for your run details'!A165,Table2[[#All],[Excluded from Top 15 Run (Y/N)]],"N") -> 376 | I165: =COUNTIFS(Table2[[#All],[Surname / First Name]],'Click here for your run details'!A165,Table2[[#All],[Excluded from Top 15 Run (Y/N)]],"N") -> 5 | J165: 75.2
A166: Hoet# Greet | D166: 1 | E166: 1 | F166: Non-Member | G166: =SUMIFS(Table2[[#All],[Overall Place]],Table2[[#All],[Surname / First Name]],$A166)/E166 -> 58 | H166: =SUMIFS(Table2[[#All],[Club Points]],Table2[[#All],[Surname / First Name]],'Click here for your run details'!A166,Table2[[#All],[Excluded from Top 15 Run (Y/N)]],"N") -> 0 | I166: =COUNTIFS(Table2[[#All],[Surname / First Name]],'Click here for your run details'!A166,Table2[[#All],[Excluded from Top 15 Run (Y/N)]],"N") -> 0 | J166: 0
A167: Hoggan John | B167: 9 | E167: 9 | F167: Member | G167: =SUMIFS(Table2[[#All],[Overall Place]],Table2[[#All],[Surname / First Name]],$A167)/E167 -> 37.88888889 | H167: =SUMIFS(Table2[[#All],[Club Points]],Table2[[#All],[Surname / First Name]],'Click here for your run details'!A167,Table2[[#All],[Excluded from Top 15 Run (Y/N)]],"N") -> 1082 | I167: =COUNTIFS(Table2[[#All],[Surname / First Name]],'Click here for your run details'!A167,Table2[[#All],[Excluded from Top 15 Run (Y/N)]],"N") -> 9 | J167: 120.2222222
A168: Hooper Garry | B168: 6 | E168: 6 | F168: Member | G168: =SUMIFS(Table2[[#All],[Overall Place]],Table2[[#All],[Surname / First Name]],$A168)/E168 -> 69.83333333 | H168: =SUMIFS(Table2[[#All],[Club Points]],Table2[[#All],[Surname / First Name]],'Click here for your run details'!A168,Table2[[#All],[Excluded from Top 15 Run (Y/N)]],"N") -> 580 | I168: =COUNTIFS(Table2[[#All],[Surname / First Name]],'Click here for your run details'!A168,Table2[[#All],[Excluded from Top 15 Run (Y/N)]],"N") -> 6 | J168: 96.66666667
A169: Hooper Jan | B169: 9 | E169: 9 | F169: Member | G169: =SUMIFS(Table2[[#All],[Overall Place]],Table2[[#All],[Surname / First Name]],$A169)/E169 -> 82.77777778 | H169: =SUMIFS(Table2[[#All],[Club Points]],Table2[[#All],[Surname / First Name]],'Click here for your run details'!A169,Table2[[#All],[Excluded from Top 15 Run (Y/N)]],"N") -> 777 | I169: =COUNTIFS(Table2[[#All],[Surname / First Name]],'Click here for your run details'!A169,Table2[[#All],[Excluded from Top 15 Run (Y/N)]],"N") -> 9 | J169: 86.33333333
A170: Horrocks Paul | D170: 1 | E170: 1 | F170: Non-Member | G170: =SUMIFS(Table2[[#All],[Overall Place]],Table2[[#All],[Surname / First Name]],$A170)/E170 -> 88 | H170: =SUMIFS(Table2[[#All],[Club Points]],Table2[[#All],[Surname / First Name]],'Click here for your run details'!A170,Table2[[#All],[Excluded from Top 15 Run (Y/N)]],"N") -> 0 | I170: =COUNTIFS(Table2[[#All],[Surname / First Name]],'Click here for your run details'!A170,Table2[[#All],[Excluded from Top 15 Run (Y/N)]],"N") -> 0 | J170: 0
A171: Horscroft Susan | B171: 8 | E171: 8 | F171: Member | G171: =SUMIFS(Table2[[#All],[Overall Place]],Table2[[#All],[Surname / First Name]],$A171)/E171 -> 79.25 | H171: =SUMIFS(Table2[[#All],[Club Points]],Table2[[#All],[Surname / First Name]],'Click here for your run details'!A171,Table2[[#All],[Excluded from Top 15 Run (Y/N)]],"N") -> 741 | I171: =COUNTIFS(Table2[[#All],[Surname / First Name]],'Click here for your run details'!A171,Table2[[#All],[Excluded from Top 15 Run (Y/N)]],"N") -> 8 | J171: 92.625
A172: Howarth Dane | D172: 1 | E172: 1 | F172: Non-Member | G172: =SUMIFS(Table2[[#All],[Overall Place]],Table2[[#All],[Surname / First Name]],$A172)/E172 -> 25 | H172: =SUMIFS(Table2[[#All],[Club Points]],Table2[[#All],[Surname / First Name]],'Click here for your run details'!A172,Table2[[#All],[Excluded from Top 15 Run (Y/N)]],"N") -> 0 | I172: =COUNTIFS(Table2[[#All],[Surname / First Name]],'Click here for your run details'!A172,Table2[[#All],[Excluded from Top 15 Run (Y/N)]],"N") -> 0 | J172: 0
A173: Howarth Dave | D173: 1 | E173: 1 | F173: Non-Member | G173: =SUMIFS(Table2[[#All],[Overall Place]],Table2[[#All],[Surname / First Name]],$A173)/E173 -> 29 | H173: =SUMIFS(Table2[[#All],[Club Points]],Table2[[#All],[Surname / First Name]],'Click here for your run details'!A173,Table2[[#All],[Excluded from Top 15 Run (Y/N)]],"N") -> 0 | I173: =COUNTIFS(Table2[[#All],[Surname / First Name]],'Click here for your run details'!A173,Table2[[#All],[Excluded from Top 15 Run (Y/N)]],"N") -> 0 | J173: 0
A174: Hudson Allan | D174: 1 | E174: 1 | F174: Non-Member | G174: =SUMIFS(Table2[[#All],[Overall Place]],Table2[[#All],[Surname / First Name]],$A174)/E174 -> 103 | H174: =SUMIFS(Table2[[#All],[Club Points]],Table2[[#All],[Surname / First Name]],'Click here for your run details'!A174,Table2[[#All],[Excluded from Top 15 Run (Y/N)]],"N") -> 0 | I174: =COUNTIFS(Table2[[#All],[Surname / First Name]],'Click here for your run details'!A174,Table2[[#All],[Excluded from Top 15 Run (Y/N)]],"N") -> 0 | J174: 0
A175: Hunter Matthew | B175: 7 | E175: 7 | F175: Member | G175: =SUMIFS(Table2[[#All],[Overall Place]],Table2[[#All],[Surname / First Name]],$A175)/E175 -> 26.57142857 | H175: =SUMIFS(Table2[[#All],[Club Points]],Table2[[#All],[Surname / First Name]],'Click here for your run details'!A175,Table2[[#All],[Excluded from Top 15 Run (Y/N)]],"N") -> 923 | I175: =COUNTIFS(Table2[[#All],[Surname / First Name]],'Click here for your run details'!A175,Table2[[#All],[Excluded from Top 15 Run (Y/N)]],"N") -> 7 | J175: 131.8571429
A176: Hunter Michael | B176: 5 | E176: 5 | F176: Member | G176: =SUMIFS(Table2[[#All],[Overall Place]],Table2[[#All],[Surname / First Name]],$A176)/E176 -> 30.6 | H176: =SUMIFS(Table2[[#All],[Club Points]],Table2[[#All],[Surname / First Name]],'Click here for your run details'!A176,Table2[[#All],[Excluded from Top 15 Run (Y/N)]],"N") -> 635 | I176: =COUNTIFS(Table2[[#All],[Surname / First Name]],'Click here for your run details'!A176,Table2[[#All],[Excluded from Top 15 Run (Y/N)]],"N") -> 5 | J176: 127
A177: Hutcheson Steven | B177: 5 | E177: 5 | F177: Member | G177: =SUMIFS(Table2[[#All],[Overall Place]],Table2[[#All],[Surname / First Name]],$A177)/E177 -> 12.8 | H177: =SUMIFS(Table2[[#All],[Club Points]],Table2[[#All],[Surname / First Name]],'Click here for your run details'!A177,Table2[[#All],[Excluded from Top 15 Run (Y/N)]],"N") -> 702 | I177: =COUNTIFS(Table2[[#All],[Surname / First Name]],'Click here for your run details'!A177,Table2[[#All],[Excluded from Top 15 Run (Y/N)]],"N") -> 5 | J177: 140.4
A178: Hutchinson Di | D178: 1 | E178: 1 | F178: Non-Member | G178: =SUMIFS(Table2[[#All],[Overall Place]],Table2[[#All],[Surname / First Name]],$A178)/E178 -> 89 | H178: =SUMIFS(Table2[[#All],[Club Points]],Table2[[#All],[Surname / First Name]],'Click here for your run details'!A178,Table2[[#All],[Excluded from Top 15 Run (Y/N)]],"N") -> 0 | I178: =COUNTIFS(Table2[[#All],[Surname / First Name]],'Click here for your run details'!A178,Table2[[#All],[Excluded from Top 15 Run (Y/N)]],"N") -> 0 | J178: 0
A179: Hyde Jevyn | B179: 18 | E179: 18 | F179: Member | G179: =SUMIFS(Table2[[#All],[Overall Place]],Table2[[#All],[Surname / First Name]],$A179)/E179 -> 16.11111111 | H179: =SUMIFS(Table2[[#All],[Club Points]],Table2[[#All],[Surname / First Name]],'Click here for your run details'!A179,Table2[[#All],[Excluded from Top 15 Run (Y/N)]],"N") -> 2138 | I179: =COUNTIFS(Table2[[#All],[Surname / First Name]],'Click here for your run details'!A179,Table2[[#All],[Excluded from Top 15 Run (Y/N)]],"N") -> 15 | J179: 142.5333333
A180: Hyde Natalie | D180: 1 | E180: 1 | F180: Non-Member | G180: =SUMIFS(Table2[[#All],[Overall Place]],Table2[[#All],[Surname / First Name]],$A180)/E180 -> 105 | H180: =SUMIFS(Table2[[#All],[Club Points]],Table2[[#All],[Surname / First Name]],'Click here for your run details'!A180,Table2[[#All],[Excluded from Top 15 Run (Y/N)]],"N") -> 0 | I180: =COUNTIFS(Table2[[#All],[Surname / First Name]],'Click here for your run details'!A180,Table2[[#All],[Excluded from Top 15 Run (Y/N)]],"N") -> 0 | J180: 0
A181: Hynes Shane | B181: 7 | E181: 7 | F181: Member | G181: =SUMIFS(Table2[[#All],[Overall Place]],Table2[[#All],[Surname / First Name]],$A181)/E181 -> 2.571428571 | H181: =SUMIFS(Table2[[#All],[Club Points]],Table2[[#All],[Surname / First Name]],'Click here for your run details'!A181,Table2[[#All],[Excluded from Top 15 Run (Y/N)]],"N") -> 1043 | I181: =COUNTIFS(Table2[[#All],[Surname / First Name]],'Click here for your run details'!A181,Table2[[#All],[Excluded from Top 15 Run (Y/N)]],"N") -> 7 | J181: 149
A182: Illman Stuart | B182: 16 | E182: 16 | F182: Member | G182: =SUMIFS(Table2[[#All],[Overall Place]],Table2[[#All],[Surname / First Name]],$A182)/E182 -> 15.5 | H182: =SUMIFS(Table2[[#All],[Club Points]],Table2[[#All],[Surname / First Name]],'Click here for your run details'!A182,Table2[[#All],[Excluded from Top 15 Run (Y/N)]],"N") -> 2094 | I182: =COUNTIFS(Table2[[#All],[Surname / First Name]],'Click here for your run details'!A182,Table2[[#All],[Excluded from Top 15 Run (Y/N)]],"N") -> 15 | J182: 139.6
A183: Isepy Chris | B183: 12 | E183: 12 | F183: Member | G183: =SUMIFS(Table2[[#All],[Overall Place]],Table2[[#All],[Surname / First Name]],$A183)/E183 -> 55.91666667 | H183: =SUMIFS(Table2[[#All],[Club Points]],Table2[[#All],[Surname / First Name]],'Click here for your run details'!A183,Table2[[#All],[Excluded from Top 15 Run (Y/N)]],"N") -> 1272 | I183: =COUNTIFS(Table2[[#All],[Surname / First Name]],'Click here for your run details'!A183,Table2[[#All],[Excluded from Top 15 Run (Y/N)]],"N") -> 12 | J183: 106
A184: Ives Jim | B184: 7 | E184: 7 | F184: Member | G184: =SUMIFS(Table2[[#All],[Overall Place]],Table2[[#All],[Surname / First Name]],$A184)/E184 -> 81.42857143 | H184: =SUMIFS(Table2[[#All],[Club Points]],Table2[[#All],[Surname / First Name]],'Click here for your run details'!A184,Table2[[#All],[Excluded from Top 15 Run (Y/N)]],"N") -> 640 | I184: =COUNTIFS(Table2[[#All],[Surname / First Name]],'Click here for your run details'!A184,Table2[[#All],[Excluded from Top 15 Run (Y/N)]],"N") -> 7 | J184: 91.42857143
A185: Jaycock Russell | D185: 1 | E185: 1 | F185: Non-Member | G185: =SUMIFS(Table2[[#All],[Overall Place]],Table2[[#All],[Surname / First Name]],$A185)/E185 -> 92 | H185: =SUMIFS(Table2[[#All],[Club Points]],Table2[[#All],[Surname / First Name]],'Click here for your run details'!A185,Table2[[#All],[Excluded from Top 15 Run (Y/N)]],"N") -> 0 | I185: =COUNTIFS(Table2[[#All],[Surname / First Name]],'Click here for your run details'!A185,Table2[[#All],[Excluded from Top 15 Run (Y/N)]],"N") -> 0 | J185: 0
A186: Jenkins Cass | D186: 7 | E186: 7 | F186: Non-Member | G186: =SUMIFS(Table2[[#All],[Overall Place]],Table2[[#All],[Surname / First Name]],$A186)/E186 -> 50.42857143 | H186: =SUMIFS(Table2[[#All],[Club Points]],Table2[[#All],[Surname / First Name]],'Click here for your run details'!A186,Table2[[#All],[Excluded from Top 15 Run (Y/N)]],"N") -> 0 | I186: =COUNTIFS(Table2[[#All],[Surname / First Name]],'Click here for your run details'!A186,Table2[[#All],[Excluded from Top 15 Run (Y/N)]],"N") -> 0 | J186: 0
A187: Jenkins Peter | D187: 1 | E187: 1 | F187: Non-Member | G187: =SUMIFS(Table2[[#All],[Overall Place]],Table2[[#All],[Surname / First Name]],$A187)/E187 -> 62 | H187: =SUMIFS(Table2[[#All],[Club Points]],Table2[[#All],[Surname / First Name]],'Click here for your run details'!A187,Table2[[#All],[Excluded from Top 15 Run (Y/N)]],"N") -> 0 | I187: =COUNTIFS(Table2[[#All],[Surname / First Name]],'Click here for your run details'!A187,Table2[[#All],[Excluded from Top 15 Run (Y/N)]],"N") -> 0 | J187: 0
A188: Johnson Cat | B188: 14 | E188: 14 | F188: Member | G188: =SUMIFS(Table2[[#All],[Overall Place]],Table2[[#All],[Surname / First Name]],$A188)/E188 -> 63.64285714 | H188: =SUMIFS(Table2[[#All],[Club Points]],Table2[[#All],[Surname / First Name]],'Click here for your run details'!A188,Table2[[#All],[Excluded from Top 15 Run (Y/N)]],"N") -> 1415 | I188: =COUNTIFS(Table2[[#All],[Surname / First Name]],'Click here for your run details'!A188,Table2[[#All],[Excluded from Top 15 Run (Y/N)]],"N") -> 14 | J188: 101.0714286
A189: Johnson Lia | B189: 11 | E189: 11 | F189: Member | G189: =SUMIFS(Table2[[#All],[Overall Place]],Table2[[#All],[Surname / First Name]],$A189)/E189 -> 50.27272727 | H189: =SUMIFS(Table2[[#All],[Club Points]],Table2[[#All],[Surname / First Name]],'Click here for your run details'!A189,Table2[[#All],[Excluded from Top 15 Run (Y/N)]],"N") -> 1217 | I189: =COUNTIFS(Table2[[#All],[Surname / First Name]],'Click here for your run details'!A189,Table2[[#All],[Excluded from Top 15 Run (Y/N)]],"N") -> 11 | J189: 110.6363636
A190: Jones Addie | D190: 1 | E190: 1 | F190: Non-Member | G190: =SUMIFS(Table2[[#All],[Overall Place]],Table2[[#All],[Surname / First Name]],$A190)/E190 -> 52 | H190: =SUMIFS(Table2[[#All],[Club Points]],Table2[[#All],[Surname / First Name]],'Click here for your run details'!A190,Table2[[#All],[Excluded from Top 15 Run (Y/N)]],"N") -> 0 | I190: =COUNTIFS(Table2[[#All],[Surname / First Name]],'Click here for your run details'!A190,Table2[[#All],[Excluded from Top 15 Run (Y/N)]],"N") -> 0 | J190: 0
A191: Jones Lisa | B191: 3 | E191: 3 | F191: Member | G191: =SUMIFS(Table2[[#All],[Overall Place]],Table2[[#All],[Surname / First Name]],$A191)/E191 -> 52 | H191: =SUMIFS(Table2[[#All],[Club Points]],Table2[[#All],[Surname / First Name]],'Click here for your run details'!A191,Table2[[#All],[Excluded from Top 15 Run (Y/N)]],"N") -> 333 | I191: =COUNTIFS(Table2[[#All],[Surname / First Name]],'Click here for your run details'!A191,Table2[[#All],[Excluded from Top 15 Run (Y/N)]],"N") -> 3 | J191: 111
A192: Jowett Anna | B192: 4 | E192: 4 | F192: Member | G192: =SUMIFS(Table2[[#All],[Overall Place]],Table2[[#All],[Surname / First Name]],$A192)/E192 -> 47.75 | H192: =SUMIFS(Table2[[#All],[Club Points]],Table2[[#All],[Surname / First Name]],'Click here for your run details'!A192,Table2[[#All],[Excluded from Top 15 Run (Y/N)]],"N") -> 451 | I192: =COUNTIFS(Table2[[#All],[Surname / First Name]],'Click here for your run details'!A192,Table2[[#All],[Excluded from Top 15 Run (Y/N)]],"N") -> 4 | J192: 112.75
A193: Keir Therese | B193: 16 | E193: 16 | F193: Member | G193: =SUMIFS(Table2[[#All],[Overall Place]],Table2[[#All],[Surname / First Name]],$A193)/E193 -> 69.3125 | H193: =SUMIFS(Table2[[#All],[Club Points]],Table2[[#All],[Surname / First Name]],'Click here for your run details'!A193,Table2[[#All],[Excluded from Top 15 Run (Y/N)]],"N") -> 1470 | I193: =COUNTIFS(Table2[[#All],[Surname / First Name]],'Click here for your run details'!A193,Table2[[#All],[Excluded from Top 15 Run (Y/N)]],"N") -> 15 | J193: 98
A194: Keller Dave | D194: 1 | E194: 1 | F194: Non-Member | G194: =SUMIFS(Table2[[#All],[Overall Place]],Table2[[#All],[Surname / First Name]],$A194)/E194 -> 34 | H194: =SUMIFS(Table2[[#All],[Club Points]],Table2[[#All],[Surname / First Name]],'Click here for your run details'!A194,Table2[[#All],[Excluded from Top 15 Run (Y/N)]],"N") -> 0 | I194: =COUNTIFS(Table2[[#All],[Surname / First Name]],'Click here for your run details'!A194,Table2[[#All],[Excluded from Top 15 Run (Y/N)]],"N") -> 0 | J194: 0
A195: Kelly Dave | D195: 6 | E195: 6 | F195: Non-Member | G195: =SUMIFS(Table2[[#All],[Overall Place]],Table2[[#All],[Surname / First Name]],$A195)/E195 -> 45.16666667 | H195: =SUMIFS(Table2[[#All],[Club Points]],Table2[[#All],[Surname / First Name]],'Click here for your run details'!A195,Table2[[#All],[Excluded from Top 15 Run (Y/N)]],"N") -> 0 | I195: =COUNTIFS(Table2[[#All],[Surname / First Name]],'Click here for your run details'!A195,Table2[[#All],[Excluded from Top 15 Run (Y/N)]],"N") -> 0 | J195: 0
A196: Kelly David | D196: 1 | E196: 1 | F196: Non-Member | G196: =SUMIFS(Table2[[#All],[Overall Place]],Table2[[#All],[Surname / First Name]],$A196)/E196 -> 29 | H196: =SUMIFS(Table2[[#All],[Club Points]],Table2[[#All],[Surname / First Name]],'Click here for your run details'!A196,Table2[[#All],[Excluded from Top 15 Run (Y/N)]],"N") -> 0 | I196: =COUNTIFS(Table2[[#All],[Surname / First Name]],'Click here for your run details'!A196,Table2[[#All],[Excluded from Top 15 Run (Y/N)]],"N") -> 0 | J196: 0
A197: Kelly Isobel | B197: 1 | E197: 1 | F197: Member | G197: =SUMIFS(Table2[[#All],[Overall Place]],Table2[[#All],[Surname / First Name]],$A197)/E197 -> 11 | H197: =SUMIFS(Table2[[#All],[Club Points]],Table2[[#All],[Surname / First Name]],'Click here for your run details'!A197,Table2[[#All],[Excluded from Top 15 Run (Y/N)]],"N") -> 140 | I197: =COUNTIFS(Table2[[#All],[Surname / First Name]],'Click here for your run details'!A197,Table2[[#All],[Excluded from Top 15 Run (Y/N)]],"N") -> 1 | J197: 140
A198: Kelly Miranda | D198: 1 | E198: 1 | F198: Non-Member | G198: =SUMIFS(Table2[[#All],[Overall Place]],Table2[[#All],[Surname / First Name]],$A198)/E198 -> 74 | H198: =SUMIFS(Table2[[#All],[Club Points]],Table2[[#All],[Surname / First Name]],'Click here for your run details'!A198,Table2[[#All],[Excluded from Top 15 Run (Y/N)]],"N") -> 0 | I198: =COUNTIFS(Table2[[#All],[Surname / First Name]],'Click here for your run details'!A198,Table2[[#All],[Excluded from Top 15 Run (Y/N)]],"N") -> 0 | J198: 0
A199: Kelly# Dave | D199: 1 | E199: 1 | F199: Non-Member | G199: =SUMIFS(Table2[[#All],[Overall Place]],Table2[[#All],[Surname / First Name]],$A199)/E199 -> 48 | H199: =SUMIFS(Table2[[#All],[Club Points]],Table2[[#All],[Surname / First Name]],'Click here for your run details'!A199,Table2[[#All],[Excluded from Top 15 Run (Y/N)]],"N") -> 0 | I199: =COUNTIFS(Table2[[#All],[Surname / First Name]],'Click here for your run details'!A199,Table2[[#All],[Excluded from Top 15 Run (Y/N)]],"N") -> 0 | J199: 0
A200: Kelso Sylvia | B200: 3 | E200: 3 | F200: Member | G200: =SUMIFS(Table2[[#All],[Overall Place]],Table2[[#All],[Surname / First Name]],$A200)/E200 -> 116.3333333 | H200: =SUMIFS(Table2[[#All],[Club Points]],Table2[[#All],[Surname / First Name]],'Click here for your run details'!A200,Table2[[#All],[Excluded from Top 15 Run (Y/N)]],"N") -> 181 | I200: =COUNTIFS(Table2[[#All],[Surname / First Name]],'Click here for your run details'!A200,Table2[[#All],[Excluded from Top 15 Run (Y/N)]],"N") -> 3 | J200: 60.33333333
... 252 more rows

Sheet Long Course Detail(web version)
A1: Townsville Road Runners - 2016 Long Course Only Database
I2: Members Only
A3: Date | B3: Run | C3: Distance | D3: Overall Place | E3: Surname / First Name | F3: Time | G3: Member/ Non Member Status | H3: Member Only Place | I3: Club Points | J3: Excluded from Top 15 Run (Y/N)
A4: 2016-03-12 | B4: Strand Run | C4: 7.4 | D4: 1 | E4: O'Regan Simon | F4: 28.42 | G4: Member | H4: 1 | I4: 150 | J4: N
A5: 2016-03-12 | B5: Strand Run | C5: 7.4 | D5: 2 | E5: Coelho Dilip | F5: 29.49 | G5: Non-Member | H5: N/A | I5: 0 | J5: Y
A6: 2016-03-12 | B6: Strand Run | C6: 7.4 | D6: 3 | E6: Buchholz Mark | F6: 29.58 | G6: Member | H6: 2 | I6: 149 | J6: N
A7: 2016-03-12 | B7: Strand Run | C7: 7.4 | D7: 4 | E7: Hynes Shane | F7: 30.14 | G7: Member | H7: 3 | I7: 148 | J7: N
A8: 2016-03-12 | B8: Strand Run | C8: 7.4 | D8: 5 | E8: Heames Sam | F8: 30.33 | G8: Non-Member | H8: N/A | I8: 0 | J8: Y
A9: 2016-03-12 | B9: Strand Run | C9: 7.4 | D9: 6 | E9: Turnbull Deahne | F9: 31.31 | G9: Member | H9: 4 | I9: 147 | J9: N
A10: 2016-03-12 | B10: Strand Run | C10: 7.4 | D10: 7 | E10: Boschen Matthew | F10: 31.38 | G10: Member | H10: 5 | I10: 146 | J10: N
A11: 2016-03-12 | B11: Strand Run | C11: 7.4 | D11: 8 | E11: Garnett Adrian | F11: 31.42 | G11: Member | H11: 6 | I11: 145 | J11: N
A12: 2016-03-12 | B12: Strand Run | C12: 7.4 | D12: 9 | E12: Stripp Deon | F12: 31.42 | G12: Member | H12: 7 | I12: 0 | J12: Y
A13: 2016-03-12 | B13: Strand Run | C13: 7.4 | D13: 10 | E13: Pretorius Christiaan | F13: 31.57 | G13: Member | H13: 8 | I13: 143 | J13: N
A14: 2016-03-12 | B14: Strand Run | C14: 7.4 | D14: 11 | E14: Di Giacomo Simon | F14: 32.18 | G14: Member-but exclude run > 1 month before joining | H14: N/A | I14: 0 | J14: Y
A15: 2016-03-12 | B15: Strand Run | C15: 7.4 | D15: 12 | E15: Werbeloff Gavin | F15: 32.59 | G15: Member | H15: 9 | I15: 142 | J15: N
A16: 2016-03-12 | B16: Strand Run | C16: 7.4 | D16: 13 | E16: Maguire Gerry | F16: 33.02 | G16: Member | H16: 10 | I16: 141 | J16: N
A17: 2016-03-12 | B17: Strand Run | C17: 7.4 | D17: 14 | E17: Schonfeldt-Roy Sonja | F17: 33.16 | G17: Member | H17: 11 | I17: 140 | J17: N
A18: 2016-03-12 | B18: Strand Run | C18: 7.4 | D18: 15 | E18: Watkins Meredith | F18: 33.43 | G18: Member | H18: 12 | I18: 139 | J18: N
A19: 2016-03-12 | B19: Strand Run | C19: 7.4 | D19: 16 | E19: Marrinan Michael | F19: 33.47 | G19: Member | H19: 13 | I19: 0 | J19: Y
A20: 2016-03-12 | B20: Strand Run | C20: 7.4 | D20: 17 | E20: Kemei Joseph | F20: 34.11 | G20: Non-Member | H20: N/A | I20: 0 | J20: Y
A21: 2016-03-12 | B21: Strand Run | C21: 7.4 | D21: 18 | E21: Mentor Andre | F21: 34.14 | G21: Member | H21: 14 | I21: 137 | J21: N
A22: 2016-03-12 | B22: Strand Run | C22: 7.4 | D22: 19 | E22: Hutcheson Steven | F22: 34.32 | G22: Member | H22: 15 | I22: 136 | J22: N
A23: 2016-03-12 | B23: Strand Run | C23: 7.4 | D23: 20 | E23: Dunsten James | F23: 34.38 | G23: Non-Member | H23: N/A | I23: 0 | J23: Y
A24: 2016-03-12 | B24: Strand Run | C24: 7.4 | D24: 21 | E24: Davies Liz | F24: 34.40 | G24: Non-Member | H24: N/A | I24: 0 | J24: Y
A25: 2016-03-12 | B25: Strand Run | C25: 7.4 | D25: 22 | E25: Schick Gerard | F25: 34.46 | G25: Member | H25: 16 | I25: 135 | J25: N
A26: 2016-03-12 | B26: Strand Run | C26: 7.4 | D26: 23 | E26: Brunker Julie | F26: 34.54 | G26: Member | H26: 17 | I26: 134 | J26: N
A27: 2016-03-12 | B27: Strand Run | C27: 7.4 | D27: 24 | E27: Crawford Les | F27: 35.04 | G27: Member | H27: 18 | I27: 0 | J27: Y
A28: 2016-03-12 | B28: Strand Run | C28: 7.4 | D28: 25 | E28: Nuttall John | F28: 35.09 | G28: Member | H28: 19 | I28: 132 | J28: N
A29: 2016-03-12 | B29: Strand Run | C29: 7.4 | D29: 26 | E29: Day Paul | F29: 35.13 | G29: Member | H29: 20 | I29: 131 | J29: N
A30: 2016-03-12 | B30: Strand Run | C30: 7.4 | D30: 27 | E30: Carter Brendan | F30: 35.15 | G30: Member | H30: 21 | I30: 130 | J30: N
A31: 2016-03-12 | B31: Strand Run | C31: 7.4 | D31: 28 | E31: Hiette Terry | F31: 35.22 | G31: Member | H31: 22 | I31: 129 | J31: N
A32: 2016-03-12 | B32: Strand Run | C32: 7.4 | D32: 29 | E32: Hiette Casey | F32: 35.27 | G32: Non-Member | H32: N/A | I32: 0 | J32: Y
A33: 2016-03-12 | B33: Strand Run | C33: 7.4 | D33: 30 | E33: Roberto Garcia | F33: 35.48 | G33: Non-Member | H33: N/A | I33: 0 | J33: Y
A34: 2016-03-12 | B34: Strand Run | C34: 7.4 | D34: 31 | E34: Guy William | F34: 35.50 | G34: Member | H34: 23 | I34: 128 | J34: N
A35: 2016-03-12 | B35: Strand Run | C35: 7.4 | D35: 32 | E35: Doherty Bill | F35: 35.59 | G35: Member | H35: 24 | I35: 0 | J35: Y
A36: 2016-03-12 | B36: Strand Run | C36: 7.4 | D36: 33 | E36: No Name Recorded | F36: 36.05 | G36: Non-Member | H36: N/A | I36: 0 | J36: Y
A37: 2016-03-12 | B37: Strand Run | C37: 7.4 | D37: 34 | E37: Vollmerhause Scott | F37: 36.27 | G37: Member | H37: 25 | I37: 126 | J37: N
A38: 2016-03-12 | B38: Strand Run | C38: 7.4 | D38: 35 | E38: Tanner Geoff | F38: 36.30 | G38: Non-Member | H38: N/A | I38: 0 | J38: Y
A39: 2016-03-12 | B39: Strand Run | C39: 7.4 | D39: 36 | E39: Nahrung David | F39: 36.34 | G39: Member | H39: 26 | I39: 125 | J39: N
A40: 2016-03-12 | B40: Strand Run | C40: 7.4 | D40: 37 | E40: Hunter Michael | F40: 36.37 | G40: Member | H40: 27 | I40: 124 | J40: N
A41: 2016-03-12 | B41: Strand Run | C41: 7.4 | D41: 38 | E41: Moore Stuart | F41: 36.46 | G41: Member | H41: 28 | I41: 123 | J41: N
A42: 2016-03-12 | B42: Strand Run | C42: 7.4 | D42: 39 | E42: Norris Bernie | F42: 36.49 | G42: Non-Member | H42: N/A | I42: 0 | J42: Y
A43: 2016-03-12 | B43: Strand Run | C43: 7.4 | D43: 40 | E43: Schmitt Riana | F43: 37.05 | G43: Member | H43: 29 | I43: 122 | J43: N
A44: 2016-03-12 | B44: Strand Run | C44: 7.4 | D44: 41 | E44: Bradley Fraser | F44: 37.20 | G44: Member | H44: 30 | I44: 0 | J44: Y
A45: 2016-03-12 | B45: Strand Run | C45: 7.4 | D45: 42 | E45: O'Regan Paul | F45: 37.38 | G45: Member | H45: 31 | I45: 120 | J45: N
A46: 2016-03-12 | B46: Strand Run | C46: 7.4 | D46: 43 | E46: Reynolds Dan | F46: 37.49 | G46: Member | H46: 32 | I46: 119 | J46: N
A47: 2016-03-12 | B47: Strand Run | C47: 7.4 | D47: 44 | E47: Evans Derrick | F47: 37.59 | G47: Member | H47: 33 | I47: 0 | J47: Y
A48: 2016-03-12 | B48: Strand Run | C48: 7.4 | D48: 45 | E48: Mueller-Coons Mic | F48: 38.02 | G48: Member-but exclude run > 1 month before joining | H48: N/A | I48: 0 | J48: Y
A49: 2016-03-12 | B49: Strand Run | C49: 7.4 | D49: 46 | E49: Hatchard Nicole | F49: 38.02 | G49: Non-Member | H49: N/A | I49: 0 | J49: Y
A50: 2016-03-12 | B50: Strand Run | C50: 7.4 | D50: 47 | E50: Wever Simon | F50: 38.03 | G50: Non-Member | H50: N/A | I50: 0 | J50: Y
A51: 2016-03-12 | B51: Strand Run | C51: 7.4 | D51: 48 | E51: Frazer Ian | F51: 38.06 | G51: Member | H51: 34 | I51: 0 | J51: Y
A52: 2016-03-12 | B52: Strand Run | C52: 7.4 | D52: 49 | E52: Stanton Geoff | F52: 38.19 | G52: Member | H52: 35 | I52: 116 | J52: N
A53: 2016-03-12 | B53: Strand Run | C53: 7.4 | D53: 50 | E53: O'Reilly Phil | F53: 38.30 | G53: Member | H53: 36 | I53: 115 | J53: N
A54: 2016-03-12 | B54: Strand Run | C54: 7.4 | D54: 51 | E54: Newman Lyn | F54: 38.33 | G54: Member | H54: 37 | I54: 114 | J54: N
A55: 2016-03-12 | B55: Strand Run | C55: 7.4 | D55: 52 | E55: Wing Gordon | F55: 38.52 | G55: Member | H55: 38 | I55: 113 | J55: N
A56: 2016-03-12 | B56: Strand Run | C56: 7.4 | D56: 53 | E56: Sewell Dave | F56: 38.58 | G56: Member | H56: 39 | I56: 112 | J56: N
A57: 2016-03-12 | B57: Strand Run | C57: 7.4 | D57: 54 | E57: Kiernan Sophie | F57: 39.23 | G57: Member | H57: 40 | I57: 111 | J57: N
A58: 2016-03-12 | B58: Strand Run | C58: 7.4 | D58: 55 | E58: Lew Brendan | F58: 39.25 | G58: Member | H58: 41 | I58: 110 | J58: N
A59: 2016-03-12 | B59: Strand Run | C59: 7.4 | D59: 56 | E59: Vincent Anoushka | F59: 39.38 | G59: Non-Member | H59: N/A | I59: 0 | J59: Y
A60: 2016-03-12 | B60: Strand Run | C60: 7.4 | D60: 57 | E60: Mayhew Susan | F60: 39.60 | G60: Member | H60: 42 | I60: 109 | J60: N
A61: 2016-03-12 | B61: Strand Run | C61: 7.4 | D61: 58 | E61: Fanning Terence | F61: 40.04 | G61: Member-but exclude run > 1 month before joining | H61: N/A | I61: 0 | J61: Y
A62: 2016-03-12 | B62: Strand Run | C62: 7.4 | D62: 59 | E62: Kennedy Gillian | F62: 40.20 | G62: Member | H62: 43 | I62: 108 | J62: N
A63: 2016-03-12 | B63: Strand Run | C63: 7.4 | D63: 60 | E63: Orth Sarah | F63: 40.26 | G63: Non-Member | H63: N/A | I63: 0 | J63: Y
A64: 2016-03-12 | B64: Strand Run | C64: 7.4 | D64: 61 | E64: Bromham Gary | F64: 40.31 | G64: Non-Member | H64: N/A | I64: 0 | J64: Y
A65: 2016-03-12 | B65: Strand Run | C65: 7.4 | D65: 62 | E65: Stanley Owen | F65: 40.56 | G65: Member | H65: 44 | I65: 107 | J65: N
A66: 2016-03-12 | B66: Strand Run | C66: 7.4 | D66: 63 | E66: Nelson Jesslyn | F66: 41.18 | G66: Member | H66: 45 | I66: 106 | J66: N
A67: 2016-03-12 | B67: Strand Run | C67: 7.4 | D67: 64 | E67: Gifford Kelly | F67: 41.19 | G67: Member | H67: 46 | I67: 105 | J67: N
A68: 2016-03-12 | B68: Strand Run | C68: 7.4 | D68: 65 | E68: Walsh John | F68: 42.41 | G68: Member | H68: 47 | I68: 104 | J68: N
A69: 2016-03-12 | B69: Strand Run | C69: 7.4 | D69: 66 | E69: Smith Aaron | F69: 42.46 | G69: Non-Member | H69: N/A | I69: 0 | J69: Y
A70: 2016-03-12 | B70: Strand Run | C70: 7.4 | D70: 67 | E70: Jones Lisa | F70: 42.51 | G70: Member | H70: 48 | I70: 103 | J70: N
A71: 2016-03-12 | B71: Strand Run | C71: 7.4 | D71: 68 | E71: Desailly Nicole | F71: 42.52 | G71: Member | H71: 49 | I71: 0 | J71: Y
A72: 2016-03-12 | B72: Strand Run | C72: 7.4 | D72: 69 | E72: Frossling Annika | F72: 42.57 | G72: Member | H72: 50 | I72: 101 | J72: N
A73: 2016-03-12 | B73: Strand Run | C73: 7.4 | D73: 70 | E73: Cox Sherry | F73: 43.06 | G73: Member | H73: 51 | I73: 0 | J73: Y
A74: 2016-03-12 | B74: Strand Run | C74: 7.4 | D74: 71 | E74: Mcnabb Jim | F74: 43.32 | G74: Member | H74: 52 | I74: 99 | J74: N
A75: 2016-03-12 | B75: Strand Run | C75: 7.4 | D75: 72 | E75: Malan Carsten | F75: 43.43 | G75: Non-Member | H75: N/A | I75: 0 | J75: Y
A76: 2016-03-12 | B76: Strand Run | C76: 7.4 | D76: 73 | E76: Eriksen Dale | F76: 44.05 | G76: Member | H76: 53 | I76: 98 | J76: N
A77: 2016-03-12 | B77: Strand Run | C77: 7.4 | D77: 74 | E77: Otto Annaliese | F77: 44.17 | G77: Member | H77: 54 | I77: 97 | J77: N
A78: 2016-03-12 | B78: Strand Run | C78: 7.4 | D78: 75 | E78: Kirchner Jim | F78: 44.23 | G78: Member | H78: 55 | I78: 96 | J78: N
A79: 2016-03-12 | B79: Strand Run | C79: 7.4 | D79: 76 | E79: Marrinan Isa | F79: 44.26 | G79: Member | H79: 56 | I79: 0 | J79: Y
A80: 2016-03-12 | B80: Strand Run | C80: 7.4 | D80: 77 | E80: Hampton Dave | F80: 44.26 | G80: Member | H80: 57 | I80: 94 | J80: N
A81: 2016-03-12 | B81: Strand Run | C81: 7.4 | D81: 78 | E81: Strid Angela | F81: 44.29 | G81: Member | H81: 58 | I81: 93 | J81: N
A82: 2016-03-12 | B82: Strand Run | C82: 7.4 | D82: 79 | E82: Armstrong Sophie | F82: 44.29 | G82: Non-Member | H82: N/A | I82: 0 | J82: Y
A83: 2016-03-12 | B83: Strand Run | C83: 7.4 | D83: 80 | E83: Labuschagne Celeste | F83: 44.38 | G83: Member | H83: 59 | I83: 92 | J83: N
A84: 2016-03-12 | B84: Strand Run | C84: 7.4 | D84: 81 | E84: Smith Mathew | F84: 44.39 | G84: Member | H84: 60 | I84: 91 | J84: N
A85: 2016-03-12 | B85: Strand Run | C85: 7.4 | D85: 82 | E85: Labuschagne Rosemarie | F85: 44.45 | G85: Member | H85: 61 | I85: 0 | J85: Y
A86: 2016-03-12 | B86: Strand Run | C86: 7.4 | D86: 83 | E86: Freislich Natalie | F86: 44.50 | G86: Member | H86: 62 | I86: 89 | J86: N
A87: 2016-03-12 | B87: Strand Run | C87: 7.4 | D87: 84 | E87: Collins Sarah | F87: 44.51 | G87: Member | H87: 63 | I87: 88 | J87: N
A88: 2016-03-12 | B88: Strand Run | C88: 7.4 | D88: 85 | E88: Johnson Lia | F88: 45.30 | G88: Member | H88: 64 | I88: 87 | J88: N
A89: 2016-03-12 | B89: Strand Run | C89: 7.4 | D89: 86 | E89: Isepy Chris | F89: 45.34 | G89: Member | H89: 65 | I89: 86 | J89: N
A90: 2016-03-12 | B90: Strand Run | C90: 7.4 | D90: 87 | E90: Doherty Rosie | F90: 46.04 | G90: Member | H90: 66 | I90: 85 | J90: N
A91: 2016-03-12 | B91: Strand Run | C91: 7.4 | D91: 88 | E91: Benedetto Giordan | F91: 46.04 | G91: Non-Member | H91: N/A | I91: 0 | J91: Y
A92: 2016-03-12 | B92: Strand Run | C92: 7.4 | D92: 89 | E92: Lahiff Peter | F92: 46.05 | G92: Member | H92: 67 | I92: 84 | J92: N
A93: 2016-03-12 | B93: Strand Run | C93: 7.4 | D93: 90 | E93: Tirendi Francesco | F93: 46.07 | G93: Member | H93: 68 | I93: 0 | J93: Y
A94: 2016-03-12 | B94: Strand Run | C94: 7.4 | D94: 91 | E94: Daamen Antony | F94: 46.37 | G94: Member | H94: 69 | I94: 0 | J94: Y
A95: 2016-03-12 | B95: Strand Run | C95: 7.4 | D95: 92 | E95: Mckeon Cathy | F95: 46.53 | G95: Non-Member | H95: N/A | I95: 0 | J95: Y
A96: 2016-03-12 | B96: Strand Run | C96: 7.4 | D96: 93 | E96: Johnson Cat | F96: 46.60 | G96: Member | H96: 70 | I96: 81 | J96: N
A97: 2016-03-12 | B97: Strand Run | C97: 7.4 | D97: 94 | E97: Barber Belinda | F97: 47.22 | G97: Member | H97: 71 | I97: 80 | J97: N
A98: 2016-03-12 | B98: Strand Run | C98: 7.4 | D98: 95 | E98: Dicketts Kelly | F98: 47.22 | G98: Member | H98: 72 | I98: 79 | J98: N
A99: 2016-03-12 | B99: Strand Run | C99: 7.4 | D99: 96 | E99: Palmer Luke | F99: 47.23 | G99: Member | H99: 73 | I99: 78 | J99: N
A100: 2016-03-12 | B100: Strand Run | C100: 7.4 | D100: 97 | E100: Andersen David | F100: 47.41 | G100: Non-Member | H100: N/A | I100: 0 | J100: Y
A101: 2016-03-12 | B101: Strand Run | C101: 7.4 | D101: 98 | E101: Patteson Kathy | F101: 47.58 | G101: Non-Member | H101: N/A | I101: 0 | J101: Y
A102: 2016-03-12 | B102: Strand Run | C102: 7.4 | D102: 99 | E102: Keir Therese | F102: 49.13 | G102: Member | H102: 74 | I102: 77 | J102: N
A103: 2016-03-12 | B103: Strand Run | C103: 7.4 | D103: 100 | E103: Sue Yek William | F103: 49.47 | G103: Member | H103: 75 | I103: 0 | J103: Y
A104: 2016-03-12 | B104: Strand Run | C104: 7.4 | D104: 101 | E104: Muhlenberg Conny | F104: 50.03 | G104: Member | H104: 76 | I104: 75 | J104: N
A105: 2016-03-12 | B105: Strand Run | C105: 7.4 | D105: 102 | E105: Pearce Jayson | F105: 50.11 | G105: Non-Member | H105: N/A | I105: 0 | J105: Y
A106: 2016-03-12 | B106: Strand Run | C106: 7.4 | D106: 103 | E106: Hearn Jennifer | F106: 50.12 | G106: Member | H106: 77 | I106: 74 | J106: N
A107: 2016-03-12 | B107: Strand Run | C107: 7.4 | D107: 104 | E107: Camakaris Catrina | F107: 50.20 | G107: Member | H107: 78 | I107: 73 | J107: N
A108: 2016-03-12 | B108: Strand Run | C108: 7.4 | D108: 105 | E108: Doherty Susan | F108: 50.34 | G108: Member | H108: 79 | I108: 0 | J108: Y
A109: 2016-03-12 | B109: Strand Run | C109: 7.4 | D109: 106 | E109: Bosworth Clare | F109: 50.58 | G109: Member | H109: 80 | I109: 71 | J109: N
A110: 2016-03-12 | B110: Strand Run | C110: 7.4 | D110: 107 | E110: De Jong Jaap | F110: 51.01 | G110: Member | H110: 81 | I110: 0 | J110: Y
A111: 2016-03-12 | B111: Strand Run | C111: 7.4 | D111: 108 | E111: Hooper Jan | F111: 52.13 | G111: Member | H111: 82 | I111: 69 | J111: N
A112: 2016-03-12 | B112: Strand Run | C112: 7.4 | D112: 109 | E112: Thompson Wally | F112: 52.53 | G112: Member | H112: 83 | I112: 68 | J112: N
A113: 2016-03-12 | B113: Strand Run | C113: 7.4 | D113: 110 | E113: Olsen John | F113: 53.19 | G113: Member | H113: 84 | I113: 67 | J113: N
A114: 2016-03-12 | B114: Strand Run | C114: 7.4 | D114: 111 | E114: Ives Jim | F114: 53.22 | G114: Member | H114: 85 | I114: 66 | J114: N
A115: 2016-03-12 | B115: Strand Run | C115: 7.4 | D115: 112 | E115: Beil Lyndie | F115: 56.20 | G115: Member | H115: 86 | I115: 0 | J115: Y
A116: 2016-03-12 | B116: Strand Run | C116: 7.4 | D116: 113 | E116: Pain Tilley | F116: 56.21 | G116: Member | H116: 87 | I116: 64 | J116: N
A117: 2016-03-12 | B117: Strand Run | C117: 7.4 | D117: 114 | E117: Leitch Cam | F117: 56.22 | G117: Member | H117: 88 | I117: 63 | J117: N
A118: 2016-03-12 | B118: Strand Run | C118: 7.4 | D118: 115 | E118: Roberts Karen | F118: 57.11 | G118: Member | H118: 89 | I118: 62 | J118: N
A119: 2016-03-12 | B119: Strand Run | C119: 7.4 | D119: 116 | E119: Bosworth Georill | F119: 59.29 | G119: Non-Member | H119: N/A | I119: 0 | J119: Y
A120: 2016-03-12 | B120: Strand Run | C120: 7.4 | D120: 117 | E120: Sibley Jack | F120: 1.00.35 | G120: Member | H120: 90 | I120: 61 | J120: N
A121: 2016-03-12 | B121: Strand Run | C121: 7.4 | D121: 118 | E121: Sinah Sam | F121: 1.02.17 | G121: Non-Member | H121: N/A | I121: 0 | J121: Y
A122: 2016-03-12 | B122: Strand Run | C122: 7.4 | D122: 119 | E122: Burrowe Melanie | F122: 1.02.19 | G122: Non-Member | H122: N/A | I122: 0 | J122: Y
A123: 2016-03-12 | B123: Strand Run | C123: 7.4 | D123: 120 | E123: Hobson Cheryl | F123: 1.02.25 | G123: Member | H123: 91 | I123: 60 | J123: N
A124: 2016-03-12 | B124: Strand Run | C124: 7.4 | D124: 121 | E124: Gillham Claudia | F124: 1.07.07 | G124: Member | H124: 92 | I124: 59 | J124: N
A125: 2016-03-12 | B125: Strand Run | C125: 7.4 | D125: 122 | E125: Kelso Sylvia | F125: 1.08.34 | G125: Member | H125: 93 | I125: 58 | J125: N
A126: 2016-03-19 | B126: University 8K and 4K Time Trial | C126: 8 | D126: 1 | E126: Coelho Dilip | F126: 30.30 | G126: Non-Member | H126: N/A | I126: 0 | J126: Y
A127: 2016-03-19 | B127: University 8K and 4K Time Trial | C127: 8 | D127: 2 | E127: Buchholz Mark | F127: 30.36 | G127: Member | H127: 1 | I127: 150 | J127: N
A128: 2016-03-19 | B128: University 8K and 4K Time Trial | C128: 8 | D128: 3 | E128: Hynes Shane | F128: 30.50 | G128: Member | H128: 2 | I128: 149 | J128: N
A129: 2016-03-19 | B129: University 8K and 4K Time Trial | C129: 8 | D129: 4 | E129: Harding Michael | F129: 31.54 | G129: Member | H129: 3 | I129: 0 | J129: Y
A130: 2016-03-19 | B130: University 8K and 4K Time Trial | C130: 8 | D130: 5 | E130: Boschen Matthew | F130: 32.37 | G130: Member | H130: 4 | I130: 147 | J130: N
A131: 2016-03-19 | B131: University 8K and 4K Time Trial | C131: 8 | D131: 6 | E131: Pretorius Christiaan | F131: 33.21 | G131: Member | H131: 5 | I131: 146 | J131: N
A132: 2016-03-19 | B132: University 8K and 4K Time Trial | C132: 8 | D132: 7 | E132: Stripp Deon | F132: 33.54 | G132: Member | H132: 6 | I132: 0 | J132: Y
A133: 2016-03-19 | B133: University 8K and 4K Time Trial | C133: 8 | D133: 8 | E133: Sun Sizhong | F133: 33.55 | G133: Member | H133: 7 | I133: 144 | J133: N
A134: 2016-03-19 | B134: University 8K and 4K Time Trial | C134: 8 | D134: 9 | E134: Wallis Cameron | F134: 34.05 | G134: Member | H134: 8 | I134: 0 | J134: Y
A135: 2016-03-19 | B135: University 8K and 4K Time Trial | C135: 8 | D135: 10 | E135: Hutcheson Steven | F135: 34.16 | G135: Member | H135: 9 | I135: 142 | J135: N
A136: 2016-03-19 | B136: University 8K and 4K Time Trial | C136: 8 | D136: 11 | E136: Schonfeldt-Roy Sonja | F136: 34.25 | G136: Member | H136: 10 | I136: 141 | J136: N
A137: 2016-03-19 | B137: University 8K and 4K Time Trial | C137: 8 | D137: 12 | E137: Werbeloff Gavin | F137: 34.30 | G137: Member | H137: 11 | I137: 140 | J137: N
A138: 2016-03-19 | B138: University 8K and 4K Time Trial | C138: 8 | D138: 13 | E138: Kemei Joseph | F138: 34.34 | G138: Non-Member | H138: N/A | I138: 0 | J138: Y
A139: 2016-03-19 | B139: University 8K and 4K Time Trial | C139: 8 | D139: 14 | E139: Watkins Meredith | F139: 34.37 | G139: Member | H139: 12 | I139: 139 | J139: N
A140: 2016-03-19 | B140: University 8K and 4K Time Trial | C140: 8 | D140: 15 | E140: Mentor Andre | F140: 34.45 | G140: Member | H140: 13 | I140: 138 | J140: N
A141: 2016-03-19 | B141: University 8K and 4K Time Trial | C141: 8 | D141: 16 | E141: Marrinan Michael | F141: 35.03 | G141: Member | H141: 14 | I141: 0 | J141: Y
A142: 2016-03-19 | B142: University 8K and 4K Time Trial | C142: 8 | D142: 17 | E142: Stafford Erin | F142: 35.40 | G142: Member | H142: 15 | I142: 0 | J142: Y
A143: 2016-03-19 | B143: University 8K and 4K Time Trial | C143: 8 | D143: 18 | E143: Brunker Julie | F143: 36.11 | G143: Member | H143: 16 | I143: 135 | J143: N
A144: 2016-03-19 | B144: University 8K and 4K Time Trial | C144: 8 | D144: 19 | E144: Day Paul | F144: 36.17 | G144: Member | H144: 17 | I144: 134 | J144: N
A145: 2016-03-19 | B145: University 8K and 4K Time Trial | C145: 8 | D145: 20 | E145: Carter Brendan | F145: 36.37 | G145: Member | H145: 18 | I145: 133 | J145: N
A146: 2016-03-19 | B146: University 8K and 4K Time Trial | C146: 8 | D146: 21 | E146: Doherty Bill | F146: 36.40 | G146: Member | H146: 19 | I146: 132 | J146: N
A147: 2016-03-19 | B147: University 8K and 4K Time Trial | C147: 8 | D147: 22 | E147: Crawford Les | F147: 36.42 | G147: Member | H147: 20 | I147: 0 | J147: Y
A148: 2016-03-19 | B148: University 8K and 4K Time Trial | C148: 8 | D148: 23 | E148: Hiette Terry | F148: 36.46 | G148: Member | H148: 21 | I148: 130 | J148: N
A149: 2016-03-19 | B149: University 8K and 4K Time Trial | C149: 8 | D149: 24 | E149: Sewell Dave | F149: 36.47 | G149: Member | H149: 22 | I149: 129 | J149: N
A150: 2016-03-19 | B150: University 8K and 4K Time Trial | C150: 8 | D150: 25 | E150: Moore Stuart | F150: 37.16 | G150: Member | H150: 23 | I150: 128 | J150: N
A151: 2016-03-19 | B151: University 8K and 4K Time Trial | C151: 8 | D151: 26 | E151: Hiette Casey | F151: 37.19 | G151: Non-Member | H151: N/A | I151: 0 | J151: Y
A152: 2016-03-19 | B152: University 8K and 4K Time Trial | C152: 8 | D152: 27 | E152: Evans Derrick | F152: 37.29 | G152: Member | H152: 24 | I152: 0 | J152: Y
A153: 2016-03-19 | B153: University 8K and 4K Time Trial | C153: 8 | D153: 28 | E153: Machin Jamie | F153: 38.13 | G153: Member-but exclude run > 1 month before joining | H153: N/A | I153: 0 | J153: Y
A154: 2016-03-19 | B154: University 8K and 4K Time Trial | C154: 8 | D154: 29 | E154: Lew Brendan | F154: 38.14 | G154: Member | H154: 25 | I154: 126 | J154: N
A155: 2016-03-19 | B155: University 8K and 4K Time Trial | C155: 8 | D155: 30 | E155: O'Regan Paul | F155: 38.21 | G155: Member | H155: 26 | I155: 125 | J155: N
A156: 2016-03-19 | B156: University 8K and 4K Time Trial | C156: 8 | D156: 31 | E156: Frazer Ian | F156: 38.25 | G156: Member | H156: 27 | I156: 124 | J156: N
A157: 2016-03-19 | B157: University 8K and 4K Time Trial | C157: 8 | D157: 32 | E157: Bradley Fraser | F157: 38.26 | G157: Member | H157: 28 | I157: 0 | J157: Y
A158: 2016-03-19 | B158: University 8K and 4K Time Trial | C158: 8 | D158: 33 | E158: Vollmerhause Scott | F158: 38.30 | G158: Member | H158: 29 | I158: 0 | J158: Y
A159: 2016-03-19 | B159: University 8K and 4K Time Trial | C159: 8 | D159: 34 | E159: Schmitt Riana | F159: 38.51 | G159: Member | H159: 30 | I159: 121 | J159: N
A160: 2016-03-19 | B160: University 8K and 4K Time Trial | C160: 8 | D160: 35 | E160: Mugambi Sheba | F160: 39.13 | G160: Member | H160: 31 | I160: 120 | J160: N
A161: 2016-03-19 | B161: University 8K and 4K Time Trial | C161: 8 | D161: 36 | E161: Prasser Mark | F161: 39.20 | G161: Member | H161: 32 | I161: 119 | J161: N
A162: 2016-03-19 | B162: University 8K and 4K Time Trial | C162: 8 | D162: 37 | E162: Wever Simon | F162: 39.23 | G162: Non-Member | H162: N/A | I162: 0 | J162: Y
A163: 2016-03-19 | B163: University 8K and 4K Time Trial | C163: 8 | D163: 38 | E163: Nicholson Trevor | F163: 39.32 | G163: Member | H163: 33 | I163: 0 | J163: Y
A164: 2016-03-19 | B164: University 8K and 4K Time Trial | C164: 8 | D164: 39 | E164: Smales Clayton | F164: 40.00 | G164: Member | H164: 34 | I164: 117 | J164: N
A165: 2016-03-19 | B165: University 8K and 4K Time Trial | C165: 8 | D165: 40 | E165: Ellershaw Robert | F165: 40.04 | G165: Member | H165: 35 | I165: 116 | J165: N
A166: 2016-03-19 | B166: University 8K and 4K Time Trial | C166: 8 | D166: 41 | E166: Reynolds Dan | F166: 40.09 | G166: Member | H166: 36 | I166: 115 | J166: N
A167: 2016-03-19 | B167: University 8K and 4K Time Trial | C167: 8 | D167: 42 | E167: Illman Stuart | F167: 40.12 | G167: Member | H167: 37 | I167: 0 | J167: Y
A168: 2016-03-19 | B168: University 8K and 4K Time Trial | C168: 8 | D168: 43 | E168: Sewell Lara | F168: 40.22 | G168: Member | H168: 38 | I168: 113 | J168: N
A169: 2016-03-19 | B169: University 8K and 4K Time Trial | C169: 8 | D169: 44 | E169: Newman Lyn | F169: 40.27 | G169: Member | H169: 39 | I169: 112 | J169: N
A170: 2016-03-19 | B170: University 8K and 4K Time Trial | C170: 8 | D170: 45 | E170: Kennedy Gillian | F170: 41.23 | G170: Member | H170: 40 | I170: 111 | J170: N
A171: 2016-03-19 | B171: University 8K and 4K Time Trial | C171: 8 | D171: 46 | E171: Mayhew Susan | F171: 41.48 | G171: Member | H171: 41 | I171: 110 | J171: N
A172: 2016-03-19 | B172: University 8K and 4K Time Trial | C172: 8 | D172: 47 | E172: Doyle Rachel | F172: 41.51 | G172: Member | H172: 42 | I172: 109 | J172: N
A173: 2016-03-19 | B173: University 8K and 4K Time Trial | C173: 8 | D173: 48 | E173: Cox Sherry | F173: 42.13 | G173: Member | H173: 43 | I173: 0 | J173: Y
A174: 2016-03-19 | B174: University 8K and 4K Time Trial | C174: 8 | D174: 49 | E174: Gifford Kelly | F174: 42.42 | G174: Member | H174: 44 | I174: 107 | J174: N
A175: 2016-03-19 | B175: University 8K and 4K Time Trial | C175: 8 | D175: 50 | E175: Newnham Colleen | F175: 43.09 | G175: Member | H175: 45 | I175: 106 | J175: N
A176: 2016-03-19 | B176: University 8K and 4K Time Trial | C176: 8 | D176: 51 | E176: Donoghue Michael | F176: 43.39 | G176: Member | H176: 46 | I176: 0 | J176: Y
A177: 2016-03-19 | B177: University 8K and 4K Time Trial | C177: 8 | D177: 52 | E177: Walsh John | F177: 43.56 | G177: Member | H177: 47 | I177: 104 | J177: N
A178: 2016-03-19 | B178: University 8K and 4K Time Trial | C178: 8 | D178: 53 | E178: Barber Belinda | F178: 44.23 | G178: Member | H178: 48 | I178: 103 | J178: N
A179: 2016-03-19 | B179: University 8K and 4K Time Trial | C179: 8 | D179: 54 | E179: Rich Keith | F179: 44.51 | G179: Member | H179: 49 | I179: 102 | J179: N
A180: 2016-03-19 | B180: University 8K and 4K Time Trial | C180: 8 | D180: 55 | E180: Armstrong Sophie | F180: 45.11 | G180: Non-Member | H180: N/A | I180: 0 | J180: Y
A181: 2016-03-19 | B181: University 8K and 4K Time Trial | C181: 8 | D181: 56 | E181: Marrinan Isa | F181: 45.16 | G181: Member | H181: 50 | I181: 0 | J181: Y
A182: 2016-03-19 | B182: University 8K and 4K Time Trial | C182: 8 | D182: 57 | E182: Kirchner Jim | F182: 45.33 | G182: Member | H182: 51 | I182: 100 | J182: N
A183: 2016-03-19 | B183: University 8K and 4K Time Trial | C183: 8 | D183: 58 | E183: Lahiff Peter | F183: 46.10 | G183: Member | H183: 52 | I183: 99 | J183: N
A184: 2016-03-19 | B184: University 8K and 4K Time Trial | C184: 8 | D184: 59 | E184: Labuschagne Rosemarie | F184: 46.17 | G184: Member | H184: 53 | I184: 0 | J184: Y
A185: 2016-03-19 | B185: University 8K and 4K Time Trial | C185: 8 | D185: 60 | E185: Collins Sarah | F185: 46.56 | G185: Member | H185: 54 | I185: 97 | J185: N
A186: 2016-03-19 | B186: University 8K and 4K Time Trial | C186: 8 | D186: 61 | E186: Fanning Terence | F186: 47.04 | G186: Member-but exclude run > 1 month before joining | H186: N/A | I186: 0 | J186: Y
A187: 2016-03-19 | B187: University 8K and 4K Time Trial | C187: 8 | D187: 62 | E187: Hampton Dave | F187: 47.19 | G187: Member | H187: 55 | I187: 96 | J187: N
A188: 2016-03-19 | B188: University 8K and 4K Time Trial | C188: 8 | D188: 63 | E188: Isepy Chris | F188: 48.40 | G188: Member | H188: 56 | I188: 95 | J188: N
A189: 2016-03-19 | B189: University 8K and 4K Time Trial | C189: 8 | D189: 64 | E189: Murakami Fiona | F189: 49.11 | G189: Member | H189: 57 | I189: 94 | J189: N
A190: 2016-03-19 | B190: University 8K and 4K Time Trial | C190: 8 | D190: 65 | E190: Rubenach Mike | F190: 49.35 | G190: Member | H190: 58 | I190: 93 | J190: N
A191: 2016-03-19 | B191: University 8K and 4K Time Trial | C191: 8 | D191: 66 | E191: Camakaris Catrina | F191: 49.42 | G191: Member | H191: 59 | I191: 92 | J191: N
A192: 2016-03-19 | B192: University 8K and 4K Time Trial | C192: 8 | D192: 67 | E192: Hearn Jennifer | F192: 49.56 | G192: Member | H192: 60 | I192: 91 | J192: N
A193: 2016-03-19 | B193: University 8K and 4K Time Trial | C193: 8 | D193: 68 | E193: Pain Tilley | F193: 50.24 | G193: Member | H193: 61 | I193: 90 | J193: N
A194: 2016-03-19 | B194: University 8K and 4K Time Trial | C194: 8 | D194: 69 | E194: Sue Yek William | F194: 50.25 | G194: Member | H194: 62 | I194: 89 | J194: N
A195: 2016-03-19 | B195: University 8K and 4K Time Trial | C195: 8 | D195: 70 | E195: Machin Pook | F195: 50.38 | G195: Member-but exclude run > 1 month before joining | H195: N/A | I195: 0 | J195: Y
A196: 2016-03-19 | B196: University 8K and 4K Time Trial | C196: 8 | D196: 71 | E196: Hooper Jan | F196: 50.52 | G196: Member | H196: 63 | I196: 88 | J196: N
A197: 2016-03-19 | B197: University 8K and 4K Time Trial | C197: 8 | D197: 72 | E197: Schadel Shona | F197: 51.34 | G197: Member | H197: 64 | I197: 87 | J197: N
A198: 2016-03-19 | B198: University 8K and 4K Time Trial | C198: 8 | D198: 73 | E198: Doherty Susan | F198: 52.18 | G198: Member | H198: 65 | I198: 0 | J198: Y
A199: 2016-03-19 | B199: University 8K and 4K Time Trial | C199: 8 | D199: 74 | E199: Bosworth Clare | F199: 53.04 | G199: Member | H199: 66 | I199: 85 | J199: N
A200: 2016-03-19 | B200: University 8K and 4K Time Trial | C200: 8 | D200: 75 | E200: Leitch Cam | F200: 54.14 | G200: Member | H200: 67 | I200: 84 | J200: N
... 2144 more rows
